Workbook

Sheet 4
G1: PANIER FUTÉ COOP
G2: 11460 Avenue Pelletier, Local 201
G3: Montréal-Nord, Québec, H1H3S4
G5: Tel : 514 - 705 - 4565
G6: Fax : 514 - 888 - 9999
C11: # Membre | D11: 4 | G11: Date : | H11: =TODAY() -> 2015-11-19
C12: Nom | D12: =IF(ISERROR(VLOOKUP(D11,membres,2)),"Nom",VLOOKUP(D11,membres,2)) -> 0 | G12: # PdC : | H12: =IF(ISERROR(VLOOKUP(D11,membres,11)),"# PdC",VLOOKUP(D11,membres,11)) -> 4
C14: Adresse | D14: =IF(ISERROR(VLOOKUP(H12,Pointdechute,2)),"Adresse de livraison",VLOOKUP(H12,Pointdechute,2)) -> Coop
C15: Livraison | D15: =IF(ISERROR(VLOOKUP(H12,Pointdechute,3)),"",VLOOKUP(H12,Pointdechute,3)) -> 6666 | E15: =IF(ISERROR(VLOOKUP(H12,Pointdechute,4)),"",VLOOKUP(H12,Pointdechute,4)) -> Boul. Pie IX
D16: =IF(ISERROR(VLOOKUP(H12,Pointdechute,5)),"",VLOOKUP(H12,Pointdechute,5)) -> Montréal-Nord
D17: =IF(ISERROR(VLOOKUP(H12,Pointdechute,7)),"",VLOOKUP(H12,Pointdechute,7)) -> H1H 6R4
A19: ID | B19: Date | C19: Item | D19: Quantité | E19: Description | F19: TX | G19: Prix Unité | H19: Montant | I19: TPS | J19: TVQ
A20: =$D$11 -> 4 | B20: =$H$11 -> 2015-11-19 | C20: 1001 | D20: 1 | E20: =IF(C20>1,VLOOKUP(C20,produits,2),"") -> Parts sociales | F20: =IF(C20>1,IF((VLOOKUP(C20,produits,7))=0,"",VLOOKUP(C20,produits,7)),"") ->  | H20: =IF(ISERROR(D20*G20),"",D20*G20) -> 0 | I20: =IF(F20="p",H20*$E$50,IF(F20="fp",H20*$E$50,"")) ->  | J20: =IF(F20="fp",H20*$E$51,"") -> 
A21: =$D$11 -> 4 | B21: =$H$11 -> 2015-11-19 | C21: 123 | D21: 1 | E21: =IF(C21>1,VLOOKUP(C21,produits,2),"") -> THÉ *TWINNING* CEYLAN 20 SACHETS | G21: =IF(C21>1,VLOOKUP(C21,produits,6),"") -> 4.5 | H21: 4.5
A22: 4 | B22: 2015-11-19 | C22: 198 | D22: 2 | E22: HUILES | G22: 0 | H22: 0
A23: 4 | B23: 2015-11-19 | C23: 182 | D23: 1 | E23: Beurre d'arachide croquant - Kraft (500 gr) | G23: 1.897083333 | H23: 1.897083333
A24: 4 | B24: 2015-11-19
A25: 4 | B25: 2015-11-19
A26: 4 | B26: 2015-11-19
A27: 4 | B27: 2015-11-19
A28: 4 | B28: 2015-11-19
A29: 4 | B29: 2015-11-19
A30: 4 | B30: 2015-11-19
A31: 4 | B31: 2015-11-19
A32: 4 | B32: 2015-11-19
A33: 4 | B33: 2015-11-19
A34: 4 | B34: 2015-11-19
A35: 4 | B35: 2015-11-19
A36: 4 | B36: 2015-11-19
A37: 4 | B37: 2015-11-19
A38: 4 | B38: 2015-11-19
A39: 4 | B39: 2015-11-19
A40: 4 | B40: 2015-11-19
A41: 4 | B41: 2015-11-19
A42: 4 | B42: 2015-11-19
A43: 4 | B43: 2015-11-19
A44: 4 | B44: 2015-11-19
A45: 4 | B45: 2015-11-19
A46: 4 | B46: 2015-11-19
A47: 4 | B47: 2015-11-19
G48: Sous total : | H48: =SUM(H20:H47) -> 6.397083333
G49: TPS | H49: =SUM(I20:I47) -> 0
E50: 0.05 | G50: TVQ | H50: =SUM(J20:J47) -> 0
D51: TVQ : | E51: 0.0975
G52: TOTAL | H52: =H48+H49+H50 -> 6.397083333

Sheet 10
G1: PANIER FUTÉ COOP
G2: 11460 Avenue Pelletier, Local 201
G3: Montréal-Nord, Québec, H1H3S4
G5: Tel : 514 - 705 - 4565
G6: Fax : 514 - 888 - 9999
C11: # Membre | G11: Date : | H11: =TODAY() -> 2015-11-19
C12: Nom | D12: =IF(ISERROR(VLOOKUP(D11,membres,2)),"Nom",VLOOKUP(D11,membres,2)) -> Nom | G12: # PdC : | H12: =IF(ISERROR(VLOOKUP(D11,membres,11)),"# PdC",VLOOKUP(D11,membres,11)) -> # PdC
C14: Adresse | D14: =IF(ISERROR(VLOOKUP(H12,Pointdechute,2)),"Adresse de livraison",VLOOKUP(H12,Pointdechute,2)) -> Adresse de livraison
C15: Livraison | D15: =IF(ISERROR(VLOOKUP(H12,Pointdechute,3)),"",VLOOKUP(H12,Pointdechute,3)) ->  | E15: =IF(ISERROR(VLOOKUP(H12,Pointdechute,4)),"",VLOOKUP(H12,Pointdechute,4)) -> 
D16: =IF(ISERROR(VLOOKUP(H12,Pointdechute,5)),"",VLOOKUP(H12,Pointdechute,5)) -> 
D17: =IF(ISERROR(VLOOKUP(H12,Pointdechute,7)),"",VLOOKUP(H12,Pointdechute,7)) -> 
A19: ID | B19: Date | C19: Item | D19: Quantité | E19: Description | F19: TX | G19: Prix Unité | H19: Montant | I19: TPS | J19: TVQ
A20: =$D$11 -> 0 | B20: =$H$11 -> 2015-11-19 | C20: 1001 | D20: 1 | E20: =IF(C20>1,VLOOKUP(C20,produits,2),"") -> Parts sociales | F20: =IF(C20>1,IF((VLOOKUP(C20,produits,7))=0,"",VLOOKUP(C20,produits,7)),"") ->  | G20: 3.5 | H20: =IF(ISERROR(D20*G20),"",D20*G20) -> 3.5 | I20: =IF(F20="p",H20*$E$50,IF(F20="fp",H20*$E$50,"")) ->  | J20: =IF(F20="fp",H20*$E$51,"") -> 
A21: =$D$11 -> 0 | B21: =$H$11 -> 2015-11-19 | C21: 324 | D21: 1 | E21: =IF(C21>1,VLOOKUP(C21,produits,2),"") -> mél gateau blanc- Supermoist (432gr) | G21: =IF(C21>1,VLOOKUP(C21,produits,6),"") -> 1.699166667 | H21: 1.699166667
A22: 0 | B22: 2015-11-19 | C22: 325 | D22: 5 | E22: Graine de lin Biologique Elan (225gr) | G22: 3.46 | H22: 17.3
A23: 0 | B23: 2015-11-19 | C23: 666 | D23: 1 | E23: Chèvre buchette -Damafro | G23: 3.81 | H23: 3.81
A24: 0 | B24: 2015-11-19
A25: 0 | B25: 2015-11-19
A26: 0 | B26: 2015-11-19
A27: 0 | B27: 2015-11-19
A28: 0 | B28: 2015-11-19
A29: 0 | B29: 2015-11-19
A30: 0 | B30: 2015-11-19
A31: 0 | B31: 2015-11-19
A32: 0 | B32: 2015-11-19
A33: 0 | B33: 2015-11-19
A34: 0 | B34: 2015-11-19
A35: 0 | B35: 2015-11-19
A36: 0 | B36: 2015-11-19
A37: 0 | B37: 2015-11-19
A38: 0 | B38: 2015-11-19
A39: 0 | B39: 2015-11-19
A40: 0 | B40: 2015-11-19
A41: 0 | B41: 2015-11-19
A42: 0 | B42: 2015-11-19
A43: 0 | B43: 2015-11-19
A44: 0 | B44: 2015-11-19
A45: 0 | B45: 2015-11-19
A46: 0 | B46: 2015-11-19
A47: 0 | B47: 2015-11-19
G48: Sous total : | H48: =SUM(H20:H47) -> 26.30916667
G49: TPS | H49: =SUM(I20:I47) -> 0
E50: 0.05 | G50: TVQ | H50: =SUM(J20:J47) -> 0
D51: TVQ : | E51: 0.0975
G52: TOTAL | H52: =H48+H49+H50 -> 26.30916667

Sheet 7
G1: PANIER FUTÉ COOP
G2: 11460 Avenue Pelletier, Local 201
G3: Montréal-Nord, Québec, H1H3S4
G5: Tel : 514 - 705 - 4565
G6: Fax : 514 - 888 - 9999
C11: # Membre | D11: 7 | G11: Date : | H11: =TODAY() -> 2015-11-19
C12: Nom | D12: =IF(ISERROR(VLOOKUP(D11,membres,2)),"Nom",VLOOKUP(D11,membres,2)) -> 0 | G12: # PdC : | H12: =IF(ISERROR(VLOOKUP(D11,membres,11)),"# PdC",VLOOKUP(D11,membres,11)) -> 2
C14: Adresse | D14: =IF(ISERROR(VLOOKUP(H12,Pointdechute,2)),"Adresse de livraison",VLOOKUP(H12,Pointdechute,2)) -> Accorderie
C15: Livraison | D15: =IF(ISERROR(VLOOKUP(H12,Pointdechute,3)),"",VLOOKUP(H12,Pointdechute,3)) -> 12000 | E15: =IF(ISERROR(VLOOKUP(H12,Pointdechute,4)),"",VLOOKUP(H12,Pointdechute,4)) -> Rue Lapierre
D16: =IF(ISERROR(VLOOKUP(H12,Pointdechute,5)),"",VLOOKUP(H12,Pointdechute,5)) -> Montréal-Nord
D17: =IF(ISERROR(VLOOKUP(H12,Pointdechute,7)),"",VLOOKUP(H12,Pointdechute,7)) -> H1H 3G6
A19: ID | B19: Date | C19: Item | D19: Quantité | E19: Description | F19: TX | G19: Prix Unité | H19: Montant | I19: TPS | J19: TVQ
A20: =$D$11 -> 7 | B20: =$H$11 -> 2015-11-19 | C20: 1001 | D20: 1 | E20: =IF(C20>1,VLOOKUP(C20,produits,2),"") -> Parts sociales | F20: =IF(C20>1,IF((VLOOKUP(C20,produits,7))=0,"",VLOOKUP(C20,produits,7)),"") ->  | G20: 3.5 | H20: =IF(ISERROR(D20*G20),"",D20*G20) -> 3.5 | I20: =IF(F20="p",H20*$E$50,IF(F20="fp",H20*$E$50,"")) ->  | J20: =IF(F20="fp",H20*$E$51,"") -> 
A21: =$D$11 -> 7 | B21: =$H$11 -> 2015-11-19 | C21: 143 | D21: 1 | E21: =IF(C21>1,VLOOKUP(C21,produits,2),"") -> TISANE LA COURTISANE CANNEBERGE | G21: =IF(C21>1,VLOOKUP(C21,produits,6),"") -> 3.5 | H21: 3.5
A22: 7 | B22: 2015-11-19 | C22: 219 | D22: 2 | E22: Riz basmati Phenicia (1kg) | G22: 2 | H22: 4
A23: 7 | B23: 2015-11-19 | C23: 315 | D23: 1 | E23: Pain 14 grains Auger (675g) | G23: 2.96 | H23: 2.96
A24: 7 | B24: 2015-11-19
A25: 7 | B25: 2015-11-19
A26: 7 | B26: 2015-11-19
A27: 7 | B27: 2015-11-19
A28: 7 | B28: 2015-11-19
A29: 7 | B29: 2015-11-19
A30: 7 | B30: 2015-11-19
A31: 7 | B31: 2015-11-19
A32: 7 | B32: 2015-11-19
A33: 7 | B33: 2015-11-19
A34: 7 | B34: 2015-11-19
A35: 7 | B35: 2015-11-19
A36: 7 | B36: 2015-11-19
A37: 7 | B37: 2015-11-19
A38: 7 | B38: 2015-11-19
A39: 7 | B39: 2015-11-19
A40: 7 | B40: 2015-11-19
A41: 7 | B41: 2015-11-19
A42: 7 | B42: 2015-11-19
A43: 7 | B43: 2015-11-19
A44: 7 | B44: 2015-11-19
A45: 7 | B45: 2015-11-19
A46: 7 | B46: 2015-11-19
A47: 7 | B47: 2015-11-19
G48: Sous total : | H48: =SUM(H20:H47) -> 13.96
G49: TPS | H49: =SUM(I20:I47) -> 0
E50: 0.05 | G50: TVQ | H50: =SUM(J20:J47) -> 0
D51: TVQ : | E51: 0.0975
G52: TOTAL | H52: =H48+H49+H50 -> 13.96

Sheet 11
G1: PANIER FUTÉ COOP
G2: 11460 Avenue Pelletier, Local 201
G3: Montréal-Nord, Québec, H1H3S4
G5: Tel : 514 - 705 - 4565
G6: Fax : 514 - 888 - 9999
C11: # Membre | D11: 11 | G11: Date : | H11: =TODAY() -> 2015-11-19
C12: Nom | D12: =IF(ISERROR(VLOOKUP(D11,membres,2)),"Nom",VLOOKUP(D11,membres,2)) -> 0 | G12: # PdC : | H12: =IF(ISERROR(VLOOKUP(D11,membres,11)),"# PdC",VLOOKUP(D11,membres,11)) -> 1
C14: Adresse | D14: =IF(ISERROR(VLOOKUP(H12,Pointdechute,2)),"Adresse de livraison",VLOOKUP(H12,Pointdechute,2)) -> PE
C15: Livraison | D15: =IF(ISERROR(VLOOKUP(H12,Pointdechute,3)),"",VLOOKUP(H12,Pointdechute,3)) -> 11460 | E15: =IF(ISERROR(VLOOKUP(H12,Pointdechute,4)),"",VLOOKUP(H12,Pointdechute,4)) -> Avenue Pelletier
D16: =IF(ISERROR(VLOOKUP(H12,Pointdechute,5)),"",VLOOKUP(H12,Pointdechute,5)) -> Montréal-Nord
D17: =IF(ISERROR(VLOOKUP(H12,Pointdechute,7)),"",VLOOKUP(H12,Pointdechute,7)) -> H1H 3S4
A19: ID | B19: Date | C19: Item | D19: Quantité | E19: Description | F19: TX | G19: Prix Unité | H19: Montant | I19: TPS | J19: TVQ
A20: =$D$11 -> 11 | B20: =$H$11 -> 2015-11-19 | C20: 1001 | D20: 1 | E20: =IF(C20>1,VLOOKUP(C20,produits,2),"") -> Parts sociales | F20: =IF(C20>1,IF((VLOOKUP(C20,produits,7))=0,"",VLOOKUP(C20,produits,7)),"") ->  | G20: 2 | H20: =IF(ISERROR(D20*G20),"",D20*G20) -> 2 | I20: =IF(F20="p",H20*$E$50,IF(F20="fp",H20*$E$50,"")) ->  | J20: =IF(F20="fp",H20*$E$51,"") -> 
A21: =$D$11 -> 11 | B21: =$H$11 -> 2015-11-19 | C21: 199 | D21: 1 | E21: =IF(C21>1,VLOOKUP(C21,produits,2),"") -> Huile de Tournesol La Perla (946 ml) (17,79/d.-c.) | G21: =IF(C21>1,VLOOKUP(C21,produits,6),"") -> 2.865833333 | H21: 2.865833333
A22: 11 | B22: 2015-11-19 | C22: 200 | D22: 1 | E22: Huile Canola - La Perla (946ml) | G22: 2.289166667 | H22: 2.289166667
A23: 11 | B23: 2015-11-19
A24: 11 | B24: 2015-11-19
A25: 11 | B25: 2015-11-19
A26: 11 | B26: 2015-11-19
A27: 11 | B27: 2015-11-19
A28: 11 | B28: 2015-11-19
A29: 11 | B29: 2015-11-19
A30: 11 | B30: 2015-11-19
A31: 11 | B31: 2015-11-19
A32: 11 | B32: 2015-11-19
A33: 11 | B33: 2015-11-19
A34: 11 | B34: 2015-11-19
A35: 11 | B35: 2015-11-19
A36: 11 | B36: 2015-11-19
A37: 11 | B37: 2015-11-19
A38: 11 | B38: 2015-11-19
A39: 11 | B39: 2015-11-19
A40: 11 | B40: 2015-11-19
A41: 11 | B41: 2015-11-19
A42: 11 | B42: 2015-11-19
A43: 11 | B43: 2015-11-19
A44: 11 | B44: 2015-11-19
A45: 11 | B45: 2015-11-19
A46: 11 | B46: 2015-11-19
A47: 11 | B47: 2015-11-19
G48: Sous total : | H48: =SUM(H20:H47) -> 7.155
G49: TPS | H49: =SUM(I20:I47) -> 0
E50: 0.05 | G50: TVQ | H50: =SUM(J20:J47) -> 0
D51: TVQ : | E51: 0.0975
G52: TOTAL | H52: =H48+H49+H50 -> 7.155

Sheet 8
G1: PANIER FUTÉ COOP
G2: 11460 Avenue Pelletier, Local 201
G3: Montréal-Nord, Québec, H1H3S4
G5: Tel : 514 - 705 - 4565
G6: Fax : 514 - 888 - 9999
C11: # Membre | D11: 8 | G11: Date : | H11: =TODAY() -> 2015-11-19
C12: Nom | D12: =IF(ISERROR(VLOOKUP(D11,membres,2)),"Nom",VLOOKUP(D11,membres,2)) -> 0 | G12: # PdC : | H12: =IF(ISERROR(VLOOKUP(D11,membres,11)),"# PdC",VLOOKUP(D11,membres,11)) -> 3
C14: Adresse | D14: =IF(ISERROR(VLOOKUP(H12,Pointdechute,2)),"Adresse de livraison",VLOOKUP(H12,Pointdechute,2)) -> Entre Parents
C15: Livraison | D15: =IF(ISERROR(VLOOKUP(H12,Pointdechute,3)),"",VLOOKUP(H12,Pointdechute,3)) -> 4825 | E15: =IF(ISERROR(VLOOKUP(H12,Pointdechute,4)),"",VLOOKUP(H12,Pointdechute,4)) -> Boulevard Gouin
D16: =IF(ISERROR(VLOOKUP(H12,Pointdechute,5)),"",VLOOKUP(H12,Pointdechute,5)) -> Montréal-Nord
D17: =IF(ISERROR(VLOOKUP(H12,Pointdechute,7)),"",VLOOKUP(H12,Pointdechute,7)) -> H1H 9O7
A19: ID | B19: Date | C19: Item | D19: Quantité | E19: Description | F19: TX | G19: Prix Unité | H19: Montant | I19: TPS | J19: TVQ
A20: =$D$11 -> 8 | B20: =$H$11 -> 2015-11-19 | C20: 234 | D20: 1 | E20: =IF(C20>1,VLOOKUP(C20,produits,2),"") -> Pate Italpasta coud (340g) | F20: =IF(C20>1,IF((VLOOKUP(C20,produits,7))=0,"",VLOOKUP(C20,produits,7)),"") ->  | G20: =IF(C20>1,VLOOKUP(C20,produits,6),"") -> 1.252 | H20: =IF(ISERROR(D20*G20),"",D20*G20) -> 1.252 | I20: =IF(F20="p",H20*$E$50,IF(F20="fp",H20*$E$50,"")) ->  | J20: =IF(F20="fp",H20*$E$51,"") -> 
A21: =$D$11 -> 8 | B21: =$H$11 -> 2015-11-19 | C21: 235 | D21: 2 | E21: =IF(C21>1,VLOOKUP(C21,produits,2),"") -> Gnocchi patate - Surgelé préparé par des AccordeurEs (500g) | G21: 1.25 | H21: 2.5
A22: 8 | B22: 2015-11-19 | C22: 236 | D22: 1 | E22: Gnocchi patate - Lantica Mola fromage (500 gr) | G22: 1.541666667 | H22: 1.541666667
A23: 8 | B23: 2015-11-19 | C23: 237 | D23: 6 | E23: Pâte macaroni coupé- Primo (454 gr) | G23: 0.8533333333 | H23: 5.12
A24: 8 | B24: 2015-11-19 | C24: 124 | D24: 1 | E24: THÉ *TWINNING* LADY GREY 20 SACHETS | G24: 4.5 | H24: 4.5
A25: 8 | B25: 2015-11-19 | C25: 126 | D25: 1 | E25: THÉ *TWINNING* DARJEELING 6X 20 SACHETS | G25: 23.5 | H25: 23.5
A26: 8 | B26: 2015-11-19 | C26: 127 | D26: 1 | E26: THÉ *TWINNING* JASMIN 6X20 SACHETS | G26: 23.5 | H26: 23.5
A27: 8 | B27: 2015-11-19 | C27: 239 | D27: 1 | E27: Perogie trois fromage-JJWILK C (1Kg) | G27: 2.945 | H27: 2.945
A28: 8 | B28: 2015-11-19 | C28: 240 | D28: 1 | E28: Pâte Linguine-Fiamma (500 gr) | G28: 0.8541666667 | H28: 0.8541666667
A29: 8 | B29: 2015-11-19 | C29: 250 | D29: 1 | E29: Nectard Poire Verona (700ml) | G29: 1.3325 | H29: 1.3325
A30: 8 | B30: 2015-11-19
A31: 8 | B31: 2015-11-19
A32: 8 | B32: 2015-11-19
A33: 8 | B33: 2015-11-19
A34: 8 | B34: 2015-11-19
A35: 8 | B35: 2015-11-19
A36: 8 | B36: 2015-11-19
A37: 8 | B37: 2015-11-19
A38: 8 | B38: 2015-11-19
A39: 8 | B39: 2015-11-19
A40: 8 | B40: 2015-11-19
A41: 8 | B41: 2015-11-19
A42: 8 | B42: 2015-11-19
A43: 8 | B43: 2015-11-19
A44: 8 | B44: 2015-11-19
A45: 8 | B45: 2015-11-19
A46: 8 | B46: 2015-11-19
A47: 8 | B47: 2015-11-19
G48: Sous total : | H48: =SUM(H20:H47) -> 67.04533333
G49: TPS | H49: =SUM(I20:I47) -> 0
E50: 0.05 | G50: TVQ | H50: =SUM(J20:J47) -> 0
D51: TVQ : | E51: 0.0975
G52: TOTAL | H52: =H48+H49+H50 -> 67.04533333

Sheet 3
G1: PANIER FUTÉ COOP
G2: 11460 Avenue Pelletier, Local 201
G3: Montréal-Nord, Québec, H1H3S4
G5: Tel : 514 - 705 - 4565
G6: Fax : 514 - 888 - 9999
C11: # Membre | D11: 3 | G11: Date : | H11: =TODAY() -> 2015-11-19
C12: Nom | D12: =IF(ISERROR(VLOOKUP(D11,membres,2)),"Nom",VLOOKUP(D11,membres,2)) -> 0 | G12: # PdC | H12: =IF(ISERROR(VLOOKUP(D11,membres,11)),"# PdC",VLOOKUP(D11,membres,11)) -> 3
C14: Adresse | D14: =IF(ISERROR(VLOOKUP(H12,Pointdechute,2)),"Adresse de livraison",VLOOKUP(H12,Pointdechute,2)) -> Entre Parents
C15: Livraison | D15: =IF(ISERROR(VLOOKUP(H12,Pointdechute,3)),"",VLOOKUP(H12,Pointdechute,3)) -> 4825 | E15: =IF(ISERROR(VLOOKUP(H12,Pointdechute,4)),"",VLOOKUP(H12,Pointdechute,4)) -> Boulevard Gouin
D16: =IF(ISERROR(VLOOKUP(H12,Pointdechute,5)),"",VLOOKUP(H12,Pointdechute,5)) -> Montréal-Nord
D17: =IF(ISERROR(VLOOKUP(H12,Pointdechute,7)),"",VLOOKUP(H12,Pointdechute,7)) -> H1H 9O7
A19: ID | B19: Date | C19: Item | D19: Quantité | E19: Description | F19: TX | G19: Prix Unité | H19: Montant | I19: TPS | J19: TVQ
A20: =$D$11 -> 3 | B20: =$H$11 -> 2015-11-19 | C20: 78 | D20: 4 | E20: =IF(C20>1,VLOOKUP(C20,produits,2),"") -> DECAFEINE COLOMBIE BRUN FILTRE | F20: =IF(C20>1,IF((VLOOKUP(C20,produits,7))=0,"",VLOOKUP(C20,produits,7)),"") ->  | G20: =IF(C20>1,VLOOKUP(C20,produits,6),"") -> 7.35 | H20: =IF(ISERROR(D20*G20),"",D20*G20) -> 29.4 | I20: =IF(F20="p",H20*$E$50,IF(F20="fp",H20*$E$50,"")) ->  | J20: =IF(F20="fp",H20*$E$51,"") -> 
A21: =$D$11 -> 3 | B21: =$H$11 -> 2015-11-19 | C21: 96 | D21: 5 | E21: =IF(C21>1,VLOOKUP(C21,produits,2),"") -> THÉ TWINING 20 SACHETS | G21: 4.5 | H21: 22.5
A22: 3 | B22: 2015-11-19 | C22: 23 | D22: 4 | E22: Panais (1lb) produit du Québec | G22: 1.75 | H22: 7
A23: 3 | B23: 2015-11-19 | C23: 86 | D23: 1 | E23: EQUITABLE X 1 LB COLOMBIE | G23: 9.25 | H23: 9.25
A24: 3 | B24: 2015-11-19 | C24: 128 | D24: 4 | E24: THÉ *TWINNING* GOUT ANGLAIS 6X20 SACHETS | G24: 23.5 | H24: 94
A25: 3 | B25: 2015-11-19 | C25: 1001 | D25: 1 | E25: Parts sociales | G25: 4.88 | H25: 4.88
A26: 3 | B26: 2015-11-19
A27: 3 | B27: 2015-11-19
A28: 3 | B28: 2015-11-19
A29: 3 | B29: 2015-11-19
A30: 3 | B30: 2015-11-19
A31: 3 | B31: 2015-11-19
A32: 3 | B32: 2015-11-19
A33: 3 | B33: 2015-11-19
A34: 3 | B34: 2015-11-19
A35: 3 | B35: 2015-11-19
A36: 3 | B36: 2015-11-19
A37: 3 | B37: 2015-11-19
A38: 3 | B38: 2015-11-19
A39: 3 | B39: 2015-11-19
A40: 3 | B40: 2015-11-19
A41: 3 | B41: 2015-11-19
A42: 3 | B42: 2015-11-19
A43: 3 | B43: 2015-11-19
A44: 3 | B44: 2015-11-19
A45: 3 | B45: 2015-11-19
A46: 3 | B46: 2015-11-19
A47: 3 | B47: 2015-11-19
G48: Sous total : | H48: =SUM(H20:H47) -> 167.03
G49: TPS | H49: =SUM(I20:I47) -> 0
E50: 0.05 | G50: TVQ | H50: =SUM(J20:J47) -> 0
D51: TVQ : | E51: 0.0975
G52: TOTAL | H52: =H48+H49+H50 -> 167.03

Sheet 9
J1: PANIER FUTÉ COOP
J2: 11460 Avenue Pelletier, Local 201
J3: Montréal-Nord, Québec, H1H3S4
J5: Tel : 514 - 705 - 4565
J6: Fax : 514 - 888 - 9999
F8: FACTURE
C11: # Membre | D11: 9 | H11: Date : | I11: =TODAY() -> 2015-11-19
C12: Nom | D12: =IF(ISERROR(VLOOKUP(D11,membres,2)),"Nom",VLOOKUP(D11,membres,2)) -> 0 | H12: # Point de chute : | I12: =IF(ISERROR(VLOOKUP(D11,membres,11)),"# PdC",VLOOKUP(D11,membres,11)) -> 4
C14: Adresse | D14: =IF(ISERROR(VLOOKUP(I12,Pointdechute,2)),"Adresse de livraison",VLOOKUP(I12,Pointdechute,2)) -> Coop
C15: Livraison | D15: =IF(ISERROR(VLOOKUP(I12,Pointdechute,3)),"",VLOOKUP(I12,Pointdechute,3)) -> 6666 | E15: =IF(ISERROR(VLOOKUP(I12,Pointdechute,4)),"",VLOOKUP(I12,Pointdechute,4)) -> Boul. Pie IX
D16: =IF(ISERROR(VLOOKUP(I12,Pointdechute,5)),"",VLOOKUP(I12,Pointdechute,5)) -> Montréal-Nord | F16: =IF(ISERROR(VLOOKUP(I12,Pointdechute,6)),"",VLOOKUP(I12,Pointdechute,6)) -> Qc | G16: =IF(ISERROR(VLOOKUP(I12,Pointdechute,7)),"",VLOOKUP(I12,Pointdechute,7)) -> H1H 6R4
A19: ID | B19: Date | C19: Item | D19: Quantité | E19: Description | I19: TX | J19: Prix Unité | K19: Montant | L19: TPS | M19: TVQ
A20: =$D$11 -> 9 | B20: =$I$11 -> 2015-11-19 | C20: 47 | D20: 6 | E20: =IF(C20>1,VLOOKUP(C20,produits,2),"") -> Framboise - chopine | I20: =IF(C20>1,IF((VLOOKUP(C20,produits,7))=0,"",VLOOKUP(C20,produits,7)),"") ->  | J20: =IF(C20>1,VLOOKUP(C20,produits,6),"") -> 1.666666667 | K20: =IF(ISERROR(D20*J20),"",D20*J20) -> 10 | L20: =IF(I20="p",K20*$E$50,IF(I20="fp",K20*$E$50,"")) ->  | M20: =IF(I20="fp",K20*$E$51,"") -> 
A21: =$D$11 -> 9 | B21: =$I$11 -> 2015-11-19 | C21: 459 | D21: 1 | E21: =IF(C21>1,VLOOKUP(C21,produits,2),"") -> Eau de javel concentrée La Parisienne(1.89L) (tx incluses) | J21: 1.6775 | K21: =IF(ISERROR(D21*J21),"",D21*J21) -> 1.6775
A22: 9 | B22: 2015-11-19 | C22: 69 | D22: 2 | E22: CAFÉ BROSSARD | J22: 0 | K22: 0
A23: 9 | B23: 2015-11-19 | C23: 59 | D23: 1 | E23: Poire Diamond (5 unités) NON DISPO FOURNISSEURS | J23: 0 | K23: 0
A24: 9 | B24: 2015-11-19 | C24: 36 | D24: 4 | E24: Basilic frais bio ( 25gr) | J24: 1 | K24: 4
A25: 9 | B25: 2015-11-19 | C25: 219 | D25: 1 | E25: Riz basmati Phenicia (1kg) | J25: 2 | K25: 2
A26: 9 | B26: 2015-11-19 | C26: 49 | D26: 4 | E26: Tomates raisin - chopine | J26: 1.25 | K26: 5
A27: 9 | B27: 2015-11-19 | C27: 1001 | D27: 1 | E27: Parts sociales | J27: 4.88 | K27: 4.88
A28: 9 | B28: 2015-11-19
A29: 9 | B29: 2015-11-19
A30: 9 | B30: 2015-11-19
A31: 9 | B31: 2015-11-19
A32: 9 | B32: 2015-11-19
A33: 9 | B33: 2015-11-19
A34: 9 | B34: 2015-11-19
A35: 9 | B35: 2015-11-19
A36: 9 | B36: 2015-11-19
A37: 9 | B37: 2015-11-19
A38: 9 | B38: 2015-11-19
A39: 9 | B39: 2015-11-19
A40: 9 | B40: 2015-11-19
A41: 9 | B41: 2015-11-19
A42: 9 | B42: 2015-11-19
A43: 9 | B43: 2015-11-19
A44: 9 | B44: 2015-11-19
A45: 9 | B45: 2015-11-19
A46: 9 | B46: 2015-11-19
A47: 9 | B47: 2015-11-19
J48: Sous total : | K48: =SUM(K20:K47) -> 27.5575
J49: TPS | K49: =SUM(L20:L47) -> 0
E50: 0.05 | J50: TVQ | K50: =SUM(M20:M47) -> 0
D51: TVQ : | E51: 0.0975
J52: TOTAL | K52: =K48+K49+K50 -> 27.5575

Sheet 6
J1: PANIER FUTÉ COOP
J2: 11460 Avenue Pelletier, Local 201
J3: Montréal-Nord, Québec, H1H3S4
J5: Tel : 514 - 705 - 4565
J6: Fax : 514 - 888 - 9999
F8: FACTURE
C11: # Membre | D11: 6 | H11: Date : | I11: =TODAY() -> 2015-11-19
C12: Nom | D12: =IF(ISERROR(VLOOKUP(D11,membres,2)),"Nom",VLOOKUP(D11,membres,2)) -> 0 | H12: # Point de chute : | I12: =IF(ISERROR(VLOOKUP(D11,membres,11)),"# PdC",VLOOKUP(D11,membres,11)) -> 1
C14: Adresse | D14: =IF(ISERROR(VLOOKUP(I12,Pointdechute,2)),"Adresse de livraison",VLOOKUP(I12,Pointdechute,2)) -> PE
C15: Livraison | D15: =IF(ISERROR(VLOOKUP(I12,Pointdechute,3)),"",VLOOKUP(I12,Pointdechute,3)) -> 11460 | E15: =IF(ISERROR(VLOOKUP(I12,Pointdechute,4)),"",VLOOKUP(I12,Pointdechute,4)) -> Avenue Pelletier
D16: =IF(ISERROR(VLOOKUP(I12,Pointdechute,5)),"",VLOOKUP(I12,Pointdechute,5)) -> Montréal-Nord | F16: =IF(ISERROR(VLOOKUP(I12,Pointdechute,6)),"",VLOOKUP(I12,Pointdechute,6)) -> Qc | G16: =IF(ISERROR(VLOOKUP(I12,Pointdechute,7)),"",VLOOKUP(I12,Pointdechute,7)) -> H1H 3S4
A19: ID | B19: Date | C19: Item | D19: Quantité | E19: Description | I19: TX | J19: Prix Unité | K19: Montant | L19: TPS | M19: TVQ
A20: =$D$11 -> 6 | B20: =$I$11 -> 2015-11-19 | C20: 47 | D20: 1 | E20: =IF(C20>1,VLOOKUP(C20,produits,2),"") -> Framboise - chopine | I20: =IF(C20>1,IF((VLOOKUP(C20,produits,7))=0,"",VLOOKUP(C20,produits,7)),"") ->  | J20: =IF(C20>1,VLOOKUP(C20,produits,6),"") -> 1.666666667 | K20: =IF(ISERROR(D20*J20),"",D20*J20) -> 1.666666667 | L20: =IF(I20="p",K20*$E$50,IF(I20="fp",K20*$E$50,"")) ->  | M20: =IF(I20="fp",K20*$E$51,"") -> 
A21: =$D$11 -> 6 | B21: =$I$11 -> 2015-11-19 | C21: 56 | D21: 7 | E21: =IF(C21>1,VLOOKUP(C21,produits,2),"") -> Clementine (2 lb ) | J21: 1.2 | K21: =IF(ISERROR(D21*J21),"",D21*J21) -> 8.4
A22: 6 | B22: 2015-11-19 | C22: 98 | D22: 1 | E22: TISANE LA COURTISANE 20 SACHETS 10 SAVEURS VARIES | J22: 3.5 | K22: 3.5
A23: 6 | B23: 2015-11-19 | C23: 127 | D23: 1 | E23: THÉ *TWINNING* JASMIN 6X20 SACHETS | J23: 23.5 | K23: 23.5
A24: 6 | B24: 2015-11-19 | C24: 148 | D24: 7 | E24: TISANE LA COURTISANE TILLEUL | J24: 3.5 | K24: 24.5
A25: 6 | B25: 2015-11-19 | C25: 1001 | D25: 1 | E25: Parts sociales | J25: 4.88 | K25: 4.88
A26: 6 | B26: 2015-11-19
A27: 6 | B27: 2015-11-19
A28: 6 | B28: 2015-11-19
A29: 6 | B29: 2015-11-19
A30: 6 | B30: 2015-11-19
A31: 6 | B31: 2015-11-19
A32: 6 | B32: 2015-11-19
A33: 6 | B33: 2015-11-19
A34: 6 | B34: 2015-11-19
A35: 6 | B35: 2015-11-19
A36: 6 | B36: 2015-11-19
A37: 6 | B37: 2015-11-19
A38: 6 | B38: 2015-11-19
A39: 6 | B39: 2015-11-19
A40: 6 | B40: 2015-11-19
A41: 6 | B41: 2015-11-19
A42: 6 | B42: 2015-11-19
A43: 6 | B43: 2015-11-19
A44: 6 | B44: 2015-11-19
A45: 6 | B45: 2015-11-19
A46: 6 | B46: 2015-11-19
A47: 6 | B47: 2015-11-19
J48: Sous total : | K48: =SUM(K20:K47) -> 66.44666667
J49: TPS | K49: =SUM(L20:L47) -> 0
E50: 0.05 | J50: TVQ | K50: =SUM(M20:M47) -> 0
D51: TVQ : | E51: 0.0975
J52: TOTAL | K52: =K48+K49+K50 -> 66.44666667

Sheet 5
J1: PANIER FUTÉ COOP
J2: 11460 Avenue Pelletier, Local 201
J3: Montréal-Nord, Québec, H1H3S4
J5: Tel : 514 - 705 - 4565
J6: Fax : 514 - 888 - 9999
F8: FACTURE
C11: # Membre | D11: 5 | H11: Date : | I11: =TODAY() -> 2015-11-19
C12: Nom | D12: =IF(ISERROR(VLOOKUP(D11,membres,2)),"Nom",VLOOKUP(D11,membres,2)) -> 0 | H12: # Point de chute : | I12: =IF(ISERROR(VLOOKUP(D11,membres,11)),"# PdC",VLOOKUP(D11,membres,11)) -> 2
C14: Adresse | D14: =IF(ISERROR(VLOOKUP(I12,Pointdechute,2)),"Adresse de livraison",VLOOKUP(I12,Pointdechute,2)) -> Accorderie
C15: Livraison | D15: =IF(ISERROR(VLOOKUP(I12,Pointdechute,3)),"",VLOOKUP(I12,Pointdechute,3)) -> 12000 | E15: =IF(ISERROR(VLOOKUP(I12,Pointdechute,4)),"",VLOOKUP(I12,Pointdechute,4)) -> Rue Lapierre
D16: =IF(ISERROR(VLOOKUP(I12,Pointdechute,5)),"",VLOOKUP(I12,Pointdechute,5)) -> Montréal-Nord | F16: =IF(ISERROR(VLOOKUP(I12,Pointdechute,6)),"",VLOOKUP(I12,Pointdechute,6)) -> Qc | G16: =IF(ISERROR(VLOOKUP(I12,Pointdechute,7)),"",VLOOKUP(I12,Pointdechute,7)) -> H1H 3G6
A19: ID | B19: Date | C19: Item | D19: Quantité | E19: Description | I19: TX | J19: Prix Unité | K19: Montant | L19: TPS | M19: TVQ
A20: =$D$11 -> 5 | B20: =$I$11 -> 2015-11-19 | C20: 47 | D20: 1 | E20: =IF(C20>1,VLOOKUP(C20,produits,2),"") -> Framboise - chopine | I20: =IF(C20>1,IF((VLOOKUP(C20,produits,7))=0,"",VLOOKUP(C20,produits,7)),"") ->  | J20: =IF(C20>1,VLOOKUP(C20,produits,6),"") -> 1.666666667 | K20: =IF(ISERROR(D20*J20),"",D20*J20) -> 1.666666667 | L20: =IF(I20="p",K20*$E$50,IF(I20="fp",K20*$E$50,"")) ->  | M20: =IF(I20="fp",K20*$E$51,"") -> 
A21: =$D$11 -> 5 | B21: =$I$11 -> 2015-11-19 | C21: 86 | D21: 4 | E21: =IF(C21>1,VLOOKUP(C21,produits,2),"") -> EQUITABLE X 1 LB COLOMBIE | J21: 9.25 | K21: =IF(ISERROR(D21*J21),"",D21*J21) -> 37
A22: 5 | B22: 2015-11-19 | C22: 96 | D22: 1 | E22: THÉ TWINING 20 SACHETS | J22: 4.5 | K22: 4.5
A23: 5 | B23: 2015-11-19 | C23: 148 | D23: 4 | E23: TISANE LA COURTISANE TILLEUL | J23: 3.5 | K23: 14
A24: 5 | B24: 2015-11-19 | C24: 147 | D24: 7 | E24: TISANE LA COURTISANE MENTHE GIVRÉE | J24: 3.5 | K24: 24.5
A25: 5 | B25: 2015-11-19 | C25: 217 | D25: 7 | E25: SEL DE MER FIN ITALIE- AURORA-(1Kg) | J25: 1.035 | K25: 7.245
A26: 5 | B26: 2015-11-19 | C26: 1001 | D26: 1 | E26: Parts sociales | J26: 4.88 | K26: 4.88
A27: 5 | B27: 2015-11-19
A28: 5 | B28: 2015-11-19
A29: 5 | B29: 2015-11-19
A30: 5 | B30: 2015-11-19
A31: 5 | B31: 2015-11-19
A32: 5 | B32: 2015-11-19
A33: 5 | B33: 2015-11-19
A34: 5 | B34: 2015-11-19
A35: 5 | B35: 2015-11-19
A36: 5 | B36: 2015-11-19
A37: 5 | B37: 2015-11-19
A38: 5 | B38: 2015-11-19
A39: 5 | B39: 2015-11-19
A40: 5 | B40: 2015-11-19
A41: 5 | B41: 2015-11-19
A42: 5 | B42: 2015-11-19
A43: 5 | B43: 2015-11-19
A44: 5 | B44: 2015-11-19
A45: 5 | B45: 2015-11-19
A46: 5 | B46: 2015-11-19
A47: 5 | B47: 2015-11-19
J48: Sous total : | K48: =SUM(K20:K47) -> 93.79166667
J49: TPS | K49: =SUM(L20:L47) -> 0
E50: 0.05 | J50: TVQ | K50: =SUM(M20:M47) -> 0
D51: TVQ : | E51: 0.0975
J52: TOTAL | K52: =K48+K49+K50 -> 93.79166667

Sheet Commander
G1: PANIER FUTÉ COOP
G2: 11460 Avenue Pelletier, Local 201
G3: Montréal-Nord, Québec, H1H3S4
G5: Tel : 514 - 705 - 4565
G6: Fax : 514 - 888 - 9999
C11: # Membre | D11: 9 | G11: Date : | H11: =TODAY() -> 2015-11-19
C12: Nom | D12: =IF(ISERROR(VLOOKUP(D11,membres,2)),"Nom",VLOOKUP(D11,membres,2)) -> 0 | G12: # PdC : | H12: =IF(ISERROR(VLOOKUP(D11,membres,11)),"# PdC",VLOOKUP(D11,membres,11)) -> 4
C14: Adresse | D14: =IF(ISERROR(VLOOKUP(H12,Pointdechute,2)),"Adresse de livraison",VLOOKUP(H12,Pointdechute,2)) -> Coop
C15: Livraison | D15: =IF(ISERROR(VLOOKUP(H12,Pointdechute,3)),"",VLOOKUP(H12,Pointdechute,3)) -> 6666 | E15: =IF(ISERROR(VLOOKUP(H12,Pointdechute,4)),"",VLOOKUP(H12,Pointdechute,4)) -> Boul. Pie IX
D16: =IF(ISERROR(VLOOKUP(H12,Pointdechute,5)),"",VLOOKUP(H12,Pointdechute,5)) -> Montréal-Nord
D17: =IF(ISERROR(VLOOKUP(H12,Pointdechute,7)),"",VLOOKUP(H12,Pointdechute,7)) -> H1H 6R4
A19: ID | B19: Date | C19: Item | D19: Quantité | E19: Description | F19: TX | G19: Prix Unité | H19: Montant | I19: TPS | J19: TVQ
A20: =$D$11 -> 9 | B20: =$H$11 -> 2015-11-19 | C20: 1001 | D20: 1 | E20: =IF(C20>1,VLOOKUP(C20,produits,2),"") -> Parts sociales | F20: =IF(C20>1,IF((VLOOKUP(C20,produits,7))=0,"",VLOOKUP(C20,produits,7)),"") ->  | H20: =IF(ISERROR(D20*G20),"",D20*G20) -> 0 | I20: =IF(F20="p",H20*$E$50,IF(F20="fp",H20*$E$50,"")) ->  | J20: =IF(F20="fp",H20*$E$51,"") -> 
A21: =$D$11 -> 9 | B21: =$H$11 -> 2015-11-19 | C21: 98 | D21: 1 | E21: =IF(C21>1,VLOOKUP(C21,produits,2),"") -> TISANE LA COURTISANE 20 SACHETS 10 SAVEURS VARIES | G21: =IF(C21>1,VLOOKUP(C21,produits,6),"") -> 3.5 | H21: 3.5
A22: 9 | B22: 2015-11-19
A23: 9 | B23: 2015-11-19
A24: 9 | B24: 2015-11-19
A25: 9 | B25: 2015-11-19
A26: 9 | B26: 2015-11-19
A27: 9 | B27: 2015-11-19
A28: 9 | B28: 2015-11-19
A29: 9 | B29: 2015-11-19
A30: 9 | B30: 2015-11-19
A31: 9 | B31: 2015-11-19
A32: 9 | B32: 2015-11-19
A33: 9 | B33: 2015-11-19
A34: 9 | B34: 2015-11-19
A35: 9 | B35: 2015-11-19
A36: 9 | B36: 2015-11-19
A37: 9 | B37: 2015-11-19
A38: 9 | B38: 2015-11-19
A39: 9 | B39: 2015-11-19
A40: 9 | B40: 2015-11-19
A41: 9 | B41: 2015-11-19
A42: 9 | B42: 2015-11-19
A43: 9 | B43: 2015-11-19
A44: 9 | B44: 2015-11-19
A45: 9 | B45: 2015-11-19
A46: 9 | B46: 2015-11-19
A47: 9 | B47: 2015-11-19
G48: Sous total : | H48: =SUM(H20:H47) -> 3.5
G49: TPS | H49: =SUM(I20:I47) -> 0
E50: 0.05 | G50: TVQ | H50: =SUM(J20:J47) -> 0
D51: TVQ : | E51: 0.0975
G52: TOTAL | H52: =H48+H49+H50 -> 3.5

Sheet Bon de commande
E1: PANIER FUTÉ COOP
E2: 11460 Avenue Pelletier, Local 201
E3: Montréal-Nord, Québec, H1H3S4
E5: Tel : 514 - 705 - 4565
E6: Fax : 514 - 888 - 9999
A9: Bon de Commande
B11: Fournisseur : | C11: =IF(ISERROR(VLOOKUP(C16,Fournisseurs,2)),"Sélectionnez un fournisseur",VLOOKUP(C16,Fournisseurs,2)) -> Café Brossard | E11: Date :
B12: Contact : | C12: =IF((IF(ISERROR(VLOOKUP(C16,Fournisseurs,10)),"",VLOOKUP(C16,Fournisseurs,10)))=0,"",IF(ISERROR(VLOOKUP(C16,Fournisseurs,10)),"",VLOOKUP(C16,Fournisseurs,10))) ->  | E12: =TODAY() -> 2015-11-19
B13: Tél 1 : | C13: =IF((IF(ISERROR(VLOOKUP(C16,Fournisseurs,7)),"",VLOOKUP(C16,Fournisseurs,7)))=0,"",IF(ISERROR(VLOOKUP(C16,Fournisseurs,7)),"",VLOOKUP(C16,Fournisseurs,7))) -> 514-321-4121
B14: Cell : | C14: =IF((IF(ISERROR(VLOOKUP(C16,Fournisseurs,8)),"",VLOOKUP(C16,Fournisseurs,8)))=0,"",IF(ISERROR(VLOOKUP(C16,Fournisseurs,8)),"",VLOOKUP(C16,Fournisseurs,8))) -> 
B16: Fournisseurs | C16: 3
D18: Valeurs | F18: Notes
B19: Item | C19: Description | D19: Qé | E19: TOTAL | F19: =IF((IF(ISERROR(VLOOKUP(B19,produits,3)),"",VLOOKUP(B19,produits,3)))=0,"",(IF(ISERROR(VLOOKUP(B19,produits,3)),"",VLOOKUP(B19,produits,3)))) -> 
B20: 78 | C20: DECAFEINE COLOMBIE BRUN FILTRE | D20: 4 | E20: 29.4
B21: 86 | C21: EQUITABLE X 1 LB COLOMBIE | D21: 5 | E21: 46.25
B22: 96 | C22: THÉ TWINING 20 SACHETS | D22: 6 | E22: 27
B23: 98 | C23: TISANE LA COURTISANE 20 SACHETS 10 SAVEURS VARIES | D23: 2 | E23: 7
B24: 123 | C24: THÉ *TWINNING* CEYLAN 20 SACHETS | D24: 1 | E24: 4.5
B25: 124 | C25: THÉ *TWINNING* LADY GREY 20 SACHETS | D25: 1 | E25: 4.5
B26: 126 | C26: THÉ *TWINNING* DARJEELING 6X 20 SACHETS | D26: 1 | E26: 23.5
B27: 127 | C27: THÉ *TWINNING* JASMIN 6X20 SACHETS | D27: 2 | E27: 47
B28: 128 | C28: THÉ *TWINNING* GOUT ANGLAIS 6X20 SACHETS | D28: 4 | E28: 94
B29: 143 | C29: TISANE LA COURTISANE CANNEBERGE | D29: 1 | E29: 3.5
B30: 147 | C30: TISANE LA COURTISANE MENTHE GIVRÉE | D30: 7 | E30: 24.5
B31: 148 | C31: TISANE LA COURTISANE TILLEUL | D31: 11 | E31: 38.5
B32: Total général | D32: 45 | E32: 349.65
F83: =IF((IF(ISERROR(VLOOKUP(B83,produits,3)),"",VLOOKUP(B83,produits,3)))=0,"",(IF(ISERROR(VLOOKUP(B83,produits,3)),"",VLOOKUP(B83,produits,3)))) -> 
F147: =IF((IF(ISERROR(VLOOKUP(B147,produits,3)),"",VLOOKUP(B147,produits,3)))=0,"",(IF(ISERROR(VLOOKUP(B147,produits,3)),"",VLOOKUP(B147,produits,3)))) -> 
F211: =IF((IF(ISERROR(VLOOKUP(B211,produits,3)),"",VLOOKUP(B211,produits,3)))=0,"",(IF(ISERROR(VLOOKUP(B211,produits,3)),"",VLOOKUP(B211,produits,3)))) -> 
F275: =IF((IF(ISERROR(VLOOKUP(B275,produits,3)),"",VLOOKUP(B275,produits,3)))=0,"",(IF(ISERROR(VLOOKUP(B275,produits,3)),"",VLOOKUP(B275,produits,3)))) -> 
F339: =IF((IF(ISERROR(VLOOKUP(B339,produits,3)),"",VLOOKUP(B339,produits,3)))=0,"",(IF(ISERROR(VLOOKUP(B339,produits,3)),"",VLOOKUP(B339,produits,3)))) -> 
F403: =IF((IF(ISERROR(VLOOKUP(B403,produits,3)),"",VLOOKUP(B403,produits,3)))=0,"",(IF(ISERROR(VLOOKUP(B403,produits,3)),"",VLOOKUP(B403,produits,3)))) -> 
F467: =IF((IF(ISERROR(VLOOKUP(B467,produits,3)),"",VLOOKUP(B467,produits,3)))=0,"",(IF(ISERROR(VLOOKUP(B467,produits,3)),"",VLOOKUP(B467,produits,3)))) -> 
F531: =IF((IF(ISERROR(VLOOKUP(B531,produits,3)),"",VLOOKUP(B531,produits,3)))=0,"",(IF(ISERROR(VLOOKUP(B531,produits,3)),"",VLOOKUP(B531,produits,3)))) -> 
F595: =IF((IF(ISERROR(VLOOKUP(B595,produits,3)),"",VLOOKUP(B595,produits,3)))=0,"",(IF(ISERROR(VLOOKUP(B595,produits,3)),"",VLOOKUP(B595,produits,3)))) -> 
F659: =IF((IF(ISERROR(VLOOKUP(B659,produits,3)),"",VLOOKUP(B659,produits,3)))=0,"",(IF(ISERROR(VLOOKUP(B659,produits,3)),"",VLOOKUP(B659,produits,3)))) -> 
F723: =IF((IF(ISERROR(VLOOKUP(B723,produits,3)),"",VLOOKUP(B723,produits,3)))=0,"",(IF(ISERROR(VLOOKUP(B723,produits,3)),"",VLOOKUP(B723,produits,3)))) -> 
F787: =IF((IF(ISERROR(VLOOKUP(B787,produits,3)),"",VLOOKUP(B787,produits,3)))=0,"",(IF(ISERROR(VLOOKUP(B787,produits,3)),"",VLOOKUP(B787,produits,3)))) -> 
F851: =IF((IF(ISERROR(VLOOKUP(B851,produits,3)),"",VLOOKUP(B851,produits,3)))=0,"",(IF(ISERROR(VLOOKUP(B851,produits,3)),"",VLOOKUP(B851,produits,3)))) -> 
F915: =IF((IF(ISERROR(VLOOKUP(B915,produits,3)),"",VLOOKUP(B915,produits,3)))=0,"",(IF(ISERROR(VLOOKUP(B915,produits,3)),"",VLOOKUP(B915,produits,3)))) -> 
F979: =IF((IF(ISERROR(VLOOKUP(B979,produits,3)),"",VLOOKUP(B979,produits,3)))=0,"",(IF(ISERROR(VLOOKUP(B979,produits,3)),"",VLOOKUP(B979,produits,3)))) -> 
F1043: =IF((IF(ISERROR(VLOOKUP(B1043,produits,3)),"",VLOOKUP(B1043,produits,3)))=0,"",(IF(ISERROR(VLOOKUP(B1043,produits,3)),"",VLOOKUP(B1043,produits,3)))) -> 

Sheet BDitem
A1: ID | B1: Date | C1: Item | D1: Quantite | E1: Description | F1: TX | G1: Prix Unitaire | H1: Montant | I1: TPS | J1: TVQ | K1: TOTAL | L1: Fournisseurs
A2: 5 | B2: 2015-11-17 | C2: 47 | D2: 1 | E2: =IF(C2>1,VLOOKUP(C2,produits,2),"") -> Framboise - chopine | F2: =IF(C2>1,VLOOKUP(C2,produits,7),"") -> 0 | G2: =IF(C2>1,VLOOKUP(C2,produits,6),"") -> 1.666666667 | H2: =IF(ISERROR(D2*G2),"",D2*G2) -> 1.666666667 | I2: =IF(F2="p",H2*5%,IF(F2="fp",H2*5%,"")) ->  | J2: =IF(F2="fp",H2*0.0975,"") ->  | K2: =IF(C2>1,SUM(H2:J2),"") -> 1.666666667 | L2: =IF(C2>1,VLOOKUP(C2,produits,8),"") -> 7
A3: 5 | B3: 2015-11-17 | C3: 86 | D3: 4 | E3: =IF(C3>1,VLOOKUP(C3,produits,2),"") -> EQUITABLE X 1 LB COLOMBIE | F3: =IF(C3>1,VLOOKUP(C3,produits,7),"") -> 0 | G3: =IF(C3>1,VLOOKUP(C3,produits,6),"") -> 9.25 | H3: =IF(ISERROR(D3*G3),"",D3*G3) -> 37 | I3: =IF(F3="p",H3*5%,IF(F3="fp",H3*5%,"")) ->  | J3: =IF(F3="fp",H3*0.0975,"") ->  | K3: =IF(C3>1,SUM(H3:J3),"") -> 37 | L3: =IF(C3>1,VLOOKUP(C3,produits,8),"") -> 3
A4: 5 | B4: 2015-11-17 | C4: 96 | D4: 1 | E4: THÉ TWINING 20 SACHETS | F4: 0 | G4: 4.5 | H4: 4.5 | K4: 4.5 | L4: 3
A5: 5 | B5: 2015-11-17 | C5: 148 | D5: 4 | E5: TISANE LA COURTISANE TILLEUL | F5: 0 | G5: 3.5 | H5: 14 | K5: 14 | L5: 3
A6: 5 | B6: 2015-11-17 | C6: 147 | D6: 7 | E6: TISANE LA COURTISANE MENTHE GIVRÉE | F6: 0 | G6: 3.5 | H6: 24.5 | K6: 24.5 | L6: 3
A7: 5 | B7: 2015-11-17 | C7: 217 | D7: 7 | E7: SEL DE MER FIN ITALIE- AURORA-(1Kg) | F7: 0 | G7: 1.035 | H7: 7.245 | K7: 7.245 | L7: 2
A8: 5 | B8: 2015-11-17 | C8: 1001 | D8: 1 | E8: Parts sociales | F8: 0 | G8: 4.88 | H8: 4.88 | K8: 4.88 | L8: 0
A9: 6 | B9: 2015-11-17 | C9: 47 | D9: 1 | E9: Framboise - chopine | F9: 0 | G9: 1.666666667 | H9: 1.666666667 | K9: 1.666666667 | L9: 7
A10: 6 | B10: 2015-11-17 | C10: 56 | D10: 7 | E10: Clementine (2 lb ) | F10: 0 | G10: 1.2 | H10: 8.4 | K10: 8.4 | L10: 1
A11: 6 | B11: 2015-11-17 | C11: 98 | D11: 1 | E11: TISANE LA COURTISANE 20 SACHETS 10 SAVEURS VARIES | F11: 0 | G11: 3.5 | H11: 3.5 | K11: 3.5 | L11: 3
A12: 6 | B12: 2015-11-17 | C12: 127 | D12: 1 | E12: THÉ *TWINNING* JASMIN 6X20 SACHETS | F12: 0 | G12: 23.5 | H12: 23.5 | K12: 23.5 | L12: 3
A13: 6 | B13: 2015-11-17 | C13: 148 | D13: 7 | E13: TISANE LA COURTISANE TILLEUL | F13: 0 | G13: 3.5 | H13: 24.5 | K13: 24.5 | L13: 3
A14: 6 | B14: 2015-11-17 | C14: 1001 | D14: 1 | E14: Parts sociales | F14: 0 | G14: 4.88 | H14: 4.88 | K14: 4.88 | L14: 0
A15: 9 | B15: 2015-11-17 | C15: 47 | D15: 6 | E15: Framboise - chopine | F15: 0 | G15: 1.666666667 | H15: 10 | K15: 10 | L15: 7
A16: 9 | B16: 2015-11-17 | C16: 459 | D16: 1 | E16: Eau de javel concentrée La Parisienne(1.89L) (tx incluses) | F16: 0 | G16: 1.6775 | H16: 1.6775 | K16: 1.6775 | L16: 0
A17: 9 | B17: 2015-11-17 | C17: 69 | D17: 2 | E17: CAFÉ BROSSARD | F17: 0 | G17: 0 | H17: 0 | K17: 0 | L17: 0
A18: 9 | B18: 2015-11-17 | C18: 59 | D18: 1 | E18: Poire Diamond (5 unités) NON DISPO FOURNISSEURS | F18: 0 | G18: 0 | H18: 0 | K18: 0 | L18: 1
A19: 9 | B19: 2015-11-17 | C19: 36 | D19: 4 | E19: Basilic frais bio ( 25gr) | F19: 0 | G19: 1 | H19: 4 | K19: 4 | L19: 7
A20: 9 | B20: 2015-11-17 | C20: 219 | D20: 1 | E20: Riz basmati Phenicia (1kg) | F20: 0 | G20: 2 | H20: 2 | K20: 2 | L20: 2
A21: 9 | B21: 2015-11-17 | C21: 49 | D21: 4 | E21: Tomates raisin - chopine | F21: 0 | G21: 1.25 | H21: 5 | K21: 5 | L21: 7
A22: 9 | B22: 2015-11-17 | C22: 1001 | D22: 1 | E22: Parts sociales | F22: 0 | G22: 4.88 | H22: 4.88 | K22: 4.88 | L22: 0
A23: 3 | B23: 2015-11-17 | C23: 78 | D23: 4 | E23: DECAFEINE COLOMBIE BRUN FILTRE | F23: 0 | G23: 7.35 | H23: 29.4 | K23: 29.4 | L23: 3
A24: 3 | B24: 2015-11-17 | C24: 96 | D24: 5 | E24: THÉ TWINING 20 SACHETS | F24: 0 | G24: 4.5 | H24: 22.5 | K24: 22.5 | L24: 3
A25: 3 | B25: 2015-11-17 | C25: 23 | D25: 4 | E25: Panais (1lb) produit du Québec | F25: 0 | G25: 1.75 | H25: 7 | K25: 7 | L25: 1
A26: 3 | B26: 2015-11-17 | C26: 86 | D26: 1 | E26: EQUITABLE X 1 LB COLOMBIE | F26: 0 | G26: 9.25 | H26: 9.25 | K26: 9.25 | L26: 3
A27: 3 | B27: 2015-11-17 | C27: 128 | D27: 4 | E27: THÉ *TWINNING* GOUT ANGLAIS 6X20 SACHETS | F27: 0 | G27: 23.5 | H27: 94 | K27: 94 | L27: 3
A28: 3 | B28: 2015-11-17 | C28: 1001 | D28: 1 | E28: Parts sociales | F28: 0 | G28: 4.88 | H28: 4.88 | K28: 4.88 | L28: 0
A29: 8 | B29: 2015-11-18 | C29: 234 | D29: 1 | E29: Pate Italpasta coud (340g) | F29: 0 | G29: 1.252 | H29: 1.252 | K29: 1.252 | L29: 2
A30: 8 | B30: 2015-11-18 | C30: 235 | D30: 2 | E30: Gnocchi patate - Surgelé préparé par des AccordeurEs (500g) | F30: 0 | G30: 1.25 | H30: 2.5 | K30: 2.5 | L30: 2
A31: 8 | B31: 2015-11-18 | C31: 236 | D31: 1 | E31: Gnocchi patate - Lantica Mola fromage (500 gr) | F31: 0 | G31: 1.541666667 | H31: 1.541666667 | K31: 1.541666667 | L31: 2
A32: 8 | B32: 2015-11-18 | C32: 237 | D32: 6 | E32: Pâte macaroni coupé- Primo (454 gr) | F32: 0 | G32: 0.8533333333 | H32: 5.12 | K32: 5.12 | L32: 2
A33: 8 | B33: 2015-11-18 | C33: 124 | D33: 1 | E33: THÉ *TWINNING* LADY GREY 20 SACHETS | F33: 0 | G33: 4.5 | H33: 4.5 | K33: 4.5 | L33: 3
A34: 8 | B34: 2015-11-18 | C34: 126 | D34: 1 | E34: THÉ *TWINNING* DARJEELING 6X 20 SACHETS | F34: 0 | G34: 23.5 | H34: 23.5 | K34: 23.5 | L34: 3
A35: 8 | B35: 2015-11-18 | C35: 127 | D35: 1 | E35: THÉ *TWINNING* JASMIN 6X20 SACHETS | F35: 0 | G35: 23.5 | H35: 23.5 | K35: 23.5 | L35: 3
A36: 8 | B36: 2015-11-18 | C36: 239 | D36: 1 | E36: Perogie trois fromage-JJWILK C (1Kg) | F36: 0 | G36: 2.945 | H36: 2.945 | K36: 2.945 | L36: 2
A37: 8 | B37: 2015-11-18 | C37: 240 | D37: 1 | E37: Pâte Linguine-Fiamma (500 gr) | F37: 0 | G37: 0.8541666667 | H37: 0.8541666667 | K37: 0.8541666667 | L37: 2
A38: 8 | B38: 2015-11-18 | C38: 250 | D38: 1 | E38: Nectard Poire Verona (700ml) | F38: 0 | G38: 1.3325 | H38: 1.3325 | K38: 1.3325 | L38: 2
A39: 11 | B39: 2015-11-19 | C39: 199 | D39: 1 | E39: Huile de Tournesol La Perla (946 ml) (17,79/d.-c.) | F39: 0 | G39: 2.865833333 | H39: 2.865833333 | K39: 2.865833333 | L39: 0
A40: 11 | B40: 2015-11-19 | C40: 200 | D40: 1 | E40: Huile Canola - La Perla (946ml) | F40: 0 | G40: 2.289166667 | H40: 2.289166667 | K40: 2.289166667 | L40: 2
A41: 7 | B41: 2015-11-19 | C41: 143 | D41: 1 | E41: TISANE LA COURTISANE CANNEBERGE | F41: 0 | G41: 3.5 | H41: 3.5 | K41: 3.5 | L41: 3
A42: 7 | B42: 2015-11-19 | C42: 219 | D42: 2 | E42: Riz basmati Phenicia (1kg) | F42: 0 | G42: 2 | H42: 4 | K42: 4 | L42: 2
A43: 7 | B43: 2015-11-19 | C43: 315 | D43: 1 | E43: Pain 14 grains Auger (675g) | F43: 0 | G43: 2.96 | H43: 2.96 | K43: 2.96 | L43: 2
A44: 0 | B44: 2015-11-19 | C44: 324 | D44: 1 | E44: mél gateau blanc- Supermoist (432gr) | F44: 0 | G44: 1.699166667 | H44: 1.699166667 | K44: 1.699166667 | L44: 2
A45: 0 | B45: 2015-11-19 | C45: 325 | D45: 5 | E45: Graine de lin Biologique Elan (225gr) | F45: 0 | G45: 3.46 | H45: 17.3 | K45: 17.3 | L45: 2
A46: 0 | B46: 2015-11-19 | C46: 666 | D46: 1 | E46: Chèvre buchette -Damafro | F46: 0 | G46: 3.81 | H46: 3.81 | K46: 3.81 | L46: 2
A47: 4 | B47: 2015-11-19 | C47: 123 | D47: 1 | E47: THÉ *TWINNING* CEYLAN 20 SACHETS | F47: 0 | G47: 4.5 | H47: 4.5 | K47: 4.5 | L47: 3
A48: 4 | B48: 2015-11-19 | C48: 198 | D48: 2 | E48: HUILES | F48: 0 | G48: 0 | H48: 0 | K48: 0 | L48: 0
A49: 4 | B49: 2015-11-19 | C49: 182 | D49: 1 | E49: Beurre d'arachide croquant - Kraft (500 gr) | F49: 0 | G49: 1.897083333 | H49: 1.897083333 | K49: 1.897083333 | L49: 2
A50: 9 | B50: 2015-11-19 | C50: 98 | D50: 1 | E50: =IF(C50>1,VLOOKUP(C50,produits,2),"") -> TISANE LA COURTISANE 20 SACHETS 10 SAVEURS VARIES | F50: =IF(C50>1,VLOOKUP(C50,produits,7),"") -> 0 | G50: =IF(C50>1,VLOOKUP(C50,produits,6),"") -> 3.5 | H50: =IF(ISERROR(D50*G50),"",D50*G50) -> 3.5 | I50: =IF(F50="p",H50*5%,IF(F50="fp",H50*5%,"")) ->  | J50: =IF(F50="fp",H50*0.0975,"") ->  | K50: =IF(C50>1,SUM(H50:J50),"") -> 3.5 | L50: =IF(C50>1,VLOOKUP(C50,produits,8),"") -> 3
E81: =IF(C81>1,VLOOKUP(C81,produits,2),"") ->  | F81: =IF(C81>1,VLOOKUP(C81,produits,7),"") ->  | G81: =IF(C81>1,VLOOKUP(C81,produits,6),"") ->  | H81: =IF(ISERROR(D81*G81),"",D81*G81) ->  | I81: =IF(F81="p",H81*5%,IF(F81="fp",H81*5%,"")) ->  | J81: =IF(F81="fp",H81*0.0975,"") ->  | K81: =IF(C81>1,SUM(H81:J81),"") ->  | L81: =IF(C81>1,VLOOKUP(C81,produits,8),"") -> 
E145: =IF(C145>1,VLOOKUP(C145,produits,2),"") ->  | F145: =IF(C145>1,VLOOKUP(C145,produits,7),"") ->  | G145: =IF(C145>1,VLOOKUP(C145,produits,6),"") ->  | H145: =IF(ISERROR(D145*G145),"",D145*G145) ->  | I145: =IF(F145="p",H145*5%,IF(F145="fp",H145*5%,"")) ->  | J145: =IF(F145="fp",H145*0.0975,"") ->  | K145: =IF(C145>1,SUM(H145:J145),"") ->  | L145: =IF(C145>1,VLOOKUP(C145,produits,8),"") -> 
E209: =IF(C209>1,VLOOKUP(C209,produits,2),"") ->  | F209: =IF(C209>1,VLOOKUP(C209,produits,7),"") ->  | G209: =IF(C209>1,VLOOKUP(C209,produits,6),"") ->  | H209: =IF(ISERROR(D209*G209),"",D209*G209) ->  | I209: =IF(F209="p",H209*5%,IF(F209="fp",H209*5%,"")) ->  | J209: =IF(F209="fp",H209*0.0975,"") ->  | K209: =IF(C209>1,SUM(H209:J209),"") ->  | L209: =IF(C209>1,VLOOKUP(C209,produits,8),"") -> 
E273: =IF(C273>1,VLOOKUP(C273,produits,2),"") ->  | F273: =IF(C273>1,VLOOKUP(C273,produits,7),"") ->  | G273: =IF(C273>1,VLOOKUP(C273,produits,6),"") ->  | H273: =IF(ISERROR(D273*G273),"",D273*G273) ->  | I273: =IF(F273="p",H273*5%,IF(F273="fp",H273*5%,"")) ->  | J273: =IF(F273="fp",H273*0.0975,"") ->  | K273: =IF(C273>1,SUM(H273:J273),"") ->  | L273: =IF(C273>1,VLOOKUP(C273,produits,8),"") -> 
E337: =IF(C337>1,VLOOKUP(C337,produits,2),"") ->  | F337: =IF(C337>1,VLOOKUP(C337,produits,7),"") ->  | G337: =IF(C337>1,VLOOKUP(C337,produits,6),"") ->  | H337: =IF(ISERROR(D337*G337),"",D337*G337) ->  | I337: =IF(F337="p",H337*5%,IF(F337="fp",H337*5%,"")) ->  | J337: =IF(F337="fp",H337*0.0975,"") ->  | K337: =IF(C337>1,SUM(H337:J337),"") ->  | L337: =IF(C337>1,VLOOKUP(C337,produits,8),"") -> 
E401: =IF(C401>1,VLOOKUP(C401,produits,2),"") ->  | F401: =IF(C401>1,VLOOKUP(C401,produits,7),"") ->  | G401: =IF(C401>1,VLOOKUP(C401,produits,6),"") ->  | H401: =IF(ISERROR(D401*G401),"",D401*G401) ->  | I401: =IF(F401="p",H401*5%,IF(F401="fp",H401*5%,"")) ->  | J401: =IF(F401="fp",H401*0.0975,"") ->  | K401: =IF(C401>1,SUM(H401:J401),"") ->  | L401: =IF(C401>1,VLOOKUP(C401,produits,8),"") -> 
E465: =IF(C465>1,VLOOKUP(C465,produits,2),"") ->  | F465: =IF(C465>1,VLOOKUP(C465,produits,7),"") ->  | G465: =IF(C465>1,VLOOKUP(C465,produits,6),"") ->  | H465: =IF(ISERROR(D465*G465),"",D465*G465) ->  | I465: =IF(F465="p",H465*5%,IF(F465="fp",H465*5%,"")) ->  | J465: =IF(F465="fp",H465*0.0975,"") ->  | K465: =IF(C465>1,SUM(H465:J465),"") ->  | L465: =IF(C465>1,VLOOKUP(C465,produits,8),"") -> 
E529: =IF(C529>1,VLOOKUP(C529,produits,2),"") ->  | F529: =IF(C529>1,VLOOKUP(C529,produits,7),"") ->  | G529: =IF(C529>1,VLOOKUP(C529,produits,6),"") ->  | H529: =IF(ISERROR(D529*G529),"",D529*G529) ->  | I529: =IF(F529="p",H529*5%,IF(F529="fp",H529*5%,"")) ->  | J529: =IF(F529="fp",H529*0.0975,"") ->  | K529: =IF(C529>1,SUM(H529:J529),"") ->  | L529: =IF(C529>1,VLOOKUP(C529,produits,8),"") -> 
E593: =IF(C593>1,VLOOKUP(C593,produits,2),"") ->  | F593: =IF(C593>1,VLOOKUP(C593,produits,7),"") ->  | G593: =IF(C593>1,VLOOKUP(C593,produits,6),"") ->  | H593: =IF(ISERROR(D593*G593),"",D593*G593) ->  | I593: =IF(F593="p",H593*5%,IF(F593="fp",H593*5%,"")) ->  | J593: =IF(F593="fp",H593*0.0975,"") ->  | K593: =IF(C593>1,SUM(H593:J593),"") ->  | L593: =IF(C593>1,VLOOKUP(C593,produits,8),"") -> 
E657: =IF(C657>1,VLOOKUP(C657,produits,2),"") ->  | F657: =IF(C657>1,VLOOKUP(C657,produits,7),"") ->  | G657: =IF(C657>1,VLOOKUP(C657,produits,6),"") ->  | H657: =IF(ISERROR(D657*G657),"",D657*G657) ->  | I657: =IF(F657="p",H657*5%,IF(F657="fp",H657*5%,"")) ->  | J657: =IF(F657="fp",H657*0.0975,"") ->  | K657: =IF(C657>1,SUM(H657:J657),"") ->  | L657: =IF(C657>1,VLOOKUP(C657,produits,8),"") -> 
E721: =IF(C721>1,VLOOKUP(C721,produits,2),"") ->  | F721: =IF(C721>1,VLOOKUP(C721,produits,7),"") ->  | G721: =IF(C721>1,VLOOKUP(C721,produits,6),"") ->  | H721: =IF(ISERROR(D721*G721),"",D721*G721) ->  | I721: =IF(F721="p",H721*5%,IF(F721="fp",H721*5%,"")) ->  | J721: =IF(F721="fp",H721*0.0975,"") ->  | K721: =IF(C721>1,SUM(H721:J721),"") ->  | L721: =IF(C721>1,VLOOKUP(C721,produits,8),"") -> 
E785: =IF(C785>1,VLOOKUP(C785,produits,2),"") ->  | F785: =IF(C785>1,VLOOKUP(C785,produits,7),"") ->  | G785: =IF(C785>1,VLOOKUP(C785,produits,6),"") ->  | H785: =IF(ISERROR(D785*G785),"",D785*G785) ->  | I785: =IF(F785="p",H785*5%,IF(F785="fp",H785*5%,"")) ->  | J785: =IF(F785="fp",H785*0.0975,"") ->  | K785: =IF(C785>1,SUM(H785:J785),"") ->  | L785: =IF(C785>1,VLOOKUP(C785,produits,8),"") -> 
E849: =IF(C849>1,VLOOKUP(C849,produits,2),"") ->  | F849: =IF(C849>1,VLOOKUP(C849,produits,7),"") ->  | G849: =IF(C849>1,VLOOKUP(C849,produits,6),"") ->  | H849: =IF(ISERROR(D849*G849),"",D849*G849) ->  | I849: =IF(F849="p",H849*5%,IF(F849="fp",H849*5%,"")) ->  | J849: =IF(F849="fp",H849*0.0975,"") ->  | K849: =IF(C849>1,SUM(H849:J849),"") ->  | L849: =IF(C849>1,VLOOKUP(C849,produits,8),"") -> 
E913: =IF(C913>1,VLOOKUP(C913,produits,2),"") ->  | F913: =IF(C913>1,VLOOKUP(C913,produits,7),"") ->  | G913: =IF(C913>1,VLOOKUP(C913,produits,6),"") ->  | H913: =IF(ISERROR(D913*G913),"",D913*G913) ->  | I913: =IF(F913="p",H913*5%,IF(F913="fp",H913*5%,"")) ->  | J913: =IF(F913="fp",H913*0.0975,"") ->  | K913: =IF(C913>1,SUM(H913:J913),"") ->  | L913: =IF(C913>1,VLOOKUP(C913,produits,8),"") -> 
E977: =IF(C977>1,VLOOKUP(C977,produits,2),"") ->  | F977: =IF(C977>1,VLOOKUP(C977,produits,7),"") ->  | G977: =IF(C977>1,VLOOKUP(C977,produits,6),"") ->  | H977: =IF(ISERROR(D977*G977),"",D977*G977) ->  | I977: =IF(F977="p",H977*5%,IF(F977="fp",H977*5%,"")) ->  | J977: =IF(F977="fp",H977*0.0975,"") ->  | K977: =IF(C977>1,SUM(H977:J977),"") ->  | L977: =IF(C977>1,VLOOKUP(C977,produits,8),"") -> 
E1041: =IF(C1041>1,VLOOKUP(C1041,produits,2),"") ->  | F1041: =IF(C1041>1,VLOOKUP(C1041,produits,7),"") ->  | G1041: =IF(C1041>1,VLOOKUP(C1041,produits,6),"") ->  | H1041: =IF(ISERROR(D1041*G1041),"",D1041*G1041) ->  | I1041: =IF(F1041="p",H1041*5%,IF(F1041="fp",H1041*5%,"")) ->  | J1041: =IF(F1041="fp",H1041*0.0975,"") ->  | K1041: =IF(C1041>1,SUM(H1041:J1041),"") ->  | L1041: =IF(C1041>1,VLOOKUP(C1041,produits,8),"") -> 
E1105: =IF(C1105>1,VLOOKUP(C1105,produits,2),"") ->  | F1105: =IF(C1105>1,VLOOKUP(C1105,produits,7),"") ->  | G1105: =IF(C1105>1,VLOOKUP(C1105,produits,6),"") ->  | H1105: =IF(ISERROR(D1105*G1105),"",D1105*G1105) ->  | I1105: =IF(F1105="p",H1105*5%,IF(F1105="fp",H1105*5%,"")) ->  | J1105: =IF(F1105="fp",H1105*0.0975,"") ->  | K1105: =IF(C1105>1,SUM(H1105:J1105),"") ->  | L1105: =IF(C1105>1,VLOOKUP(C1105,produits,8),"") -> 
E1169: =IF(C1169>1,VLOOKUP(C1169,produits,2),"") ->  | F1169: =IF(C1169>1,VLOOKUP(C1169,produits,7),"") ->  | G1169: =IF(C1169>1,VLOOKUP(C1169,produits,6),"") ->  | H1169: =IF(ISERROR(D1169*G1169),"",D1169*G1169) ->  | I1169: =IF(F1169="p",H1169*5%,IF(F1169="fp",H1169*5%,"")) ->  | J1169: =IF(F1169="fp",H1169*0.0975,"") ->  | K1169: =IF(C1169>1,SUM(H1169:J1169),"") ->  | L1169: =IF(C1169>1,VLOOKUP(C1169,produits,8),"") -> 
E1233: =IF(C1233>1,VLOOKUP(C1233,produits,2),"") ->  | F1233: =IF(C1233>1,VLOOKUP(C1233,produits,7),"") ->  | G1233: =IF(C1233>1,VLOOKUP(C1233,produits,6),"") ->  | H1233: =IF(ISERROR(D1233*G1233),"",D1233*G1233) ->  | I1233: =IF(F1233="p",H1233*5%,IF(F1233="fp",H1233*5%,"")) ->  | J1233: =IF(F1233="fp",H1233*0.0975,"") ->  | K1233: =IF(C1233>1,SUM(H1233:J1233),"") ->  | L1233: =IF(C1233>1,VLOOKUP(C1233,produits,8),"") -> 
E1297: =IF(C1297>1,VLOOKUP(C1297,produits,2),"") ->  | F1297: =IF(C1297>1,VLOOKUP(C1297,produits,7),"") ->  | G1297: =IF(C1297>1,VLOOKUP(C1297,produits,6),"") ->  | H1297: =IF(ISERROR(D1297*G1297),"",D1297*G1297) ->  | I1297: =IF(F1297="p",H1297*5%,IF(F1297="fp",H1297*5%,"")) ->  | J1297: =IF(F1297="fp",H1297*0.0975,"") ->  | K1297: =IF(C1297>1,SUM(H1297:J1297),"") ->  | L1297: =IF(C1297>1,VLOOKUP(C1297,produits,8),"") -> 
E1361: =IF(C1361>1,VLOOKUP(C1361,produits,2),"") ->  | F1361: =IF(C1361>1,VLOOKUP(C1361,produits,7),"") ->  | G1361: =IF(C1361>1,VLOOKUP(C1361,produits,6),"") ->  | H1361: =IF(ISERROR(D1361*G1361),"",D1361*G1361) ->  | I1361: =IF(F1361="p",H1361*5%,IF(F1361="fp",H1361*5%,"")) ->  | J1361: =IF(F1361="fp",H1361*0.0975,"") ->  | K1361: =IF(C1361>1,SUM(H1361:J1361),"") ->  | L1361: =IF(C1361>1,VLOOKUP(C1361,produits,8),"") -> 
E1425: =IF(C1425>1,VLOOKUP(C1425,produits,2),"") ->  | F1425: =IF(C1425>1,VLOOKUP(C1425,produits,7),"") ->  | G1425: =IF(C1425>1,VLOOKUP(C1425,produits,6),"") ->  | H1425: =IF(ISERROR(D1425*G1425),"",D1425*G1425) ->  | I1425: =IF(F1425="p",H1425*5%,IF(F1425="fp",H1425*5%,"")) ->  | J1425: =IF(F1425="fp",H1425*0.0975,"") ->  | K1425: =IF(C1425>1,SUM(H1425:J1425),"") ->  | L1425: =IF(C1425>1,VLOOKUP(C1425,produits,8),"") -> 
E1489: =IF(C1489>1,VLOOKUP(C1489,produits,2),"") ->  | F1489: =IF(C1489>1,VLOOKUP(C1489,produits,7),"") ->  | G1489: =IF(C1489>1,VLOOKUP(C1489,produits,6),"") ->  | H1489: =IF(ISERROR(D1489*G1489),"",D1489*G1489) ->  | I1489: =IF(F1489="p",H1489*5%,IF(F1489="fp",H1489*5%,"")) ->  | J1489: =IF(F1489="fp",H1489*0.0975,"") ->  | K1489: =IF(C1489>1,SUM(H1489:J1489),"") ->  | L1489: =IF(C1489>1,VLOOKUP(C1489,produits,8),"") -> 
E1553: =IF(C1553>1,VLOOKUP(C1553,produits,2),"") ->  | F1553: =IF(C1553>1,VLOOKUP(C1553,produits,7),"") ->  | G1553: =IF(C1553>1,VLOOKUP(C1553,produits,6),"") ->  | H1553: =IF(ISERROR(D1553*G1553),"",D1553*G1553) ->  | I1553: =IF(F1553="p",H1553*5%,IF(F1553="fp",H1553*5%,"")) ->  | J1553: =IF(F1553="fp",H1553*0.0975,"") ->  | K1553: =IF(C1553>1,SUM(H1553:J1553),"") ->  | L1553: =IF(C1553>1,VLOOKUP(C1553,produits,8),"") -> 
E1617: =IF(C1617>1,VLOOKUP(C1617,produits,2),"") ->  | F1617: =IF(C1617>1,VLOOKUP(C1617,produits,7),"") ->  | G1617: =IF(C1617>1,VLOOKUP(C1617,produits,6),"") ->  | H1617: =IF(ISERROR(D1617*G1617),"",D1617*G1617) ->  | I1617: =IF(F1617="p",H1617*5%,IF(F1617="fp",H1617*5%,"")) ->  | J1617: =IF(F1617="fp",H1617*0.0975,"") ->  | K1617: =IF(C1617>1,SUM(H1617:J1617),"") ->  | L1617: =IF(C1617>1,VLOOKUP(C1617,produits,8),"") -> 
E1681: =IF(C1681>1,VLOOKUP(C1681,produits,2),"") ->  | F1681: =IF(C1681>1,VLOOKUP(C1681,produits,7),"") ->  | G1681: =IF(C1681>1,VLOOKUP(C1681,produits,6),"") ->  | H1681: =IF(ISERROR(D1681*G1681),"",D1681*G1681) ->  | I1681: =IF(F1681="p",H1681*5%,IF(F1681="fp",H1681*5%,"")) ->  | J1681: =IF(F1681="fp",H1681*0.0975,"") ->  | K1681: =IF(C1681>1,SUM(H1681:J1681),"") ->  | L1681: =IF(C1681>1,VLOOKUP(C1681,produits,8),"") -> 
E1745: =IF(C1745>1,VLOOKUP(C1745,produits,2),"") ->  | F1745: =IF(C1745>1,VLOOKUP(C1745,produits,7),"") ->  | G1745: =IF(C1745>1,VLOOKUP(C1745,produits,6),"") ->  | H1745: =IF(ISERROR(D1745*G1745),"",D1745*G1745) ->  | I1745: =IF(F1745="p",H1745*5%,IF(F1745="fp",H1745*5%,"")) ->  | J1745: =IF(F1745="fp",H1745*0.0975,"") ->  | K1745: =IF(C1745>1,SUM(H1745:J1745),"") ->  | L1745: =IF(C1745>1,VLOOKUP(C1745,produits,8),"") -> 
E1809: =IF(C1809>1,VLOOKUP(C1809,produits,2),"") ->  | F1809: =IF(C1809>1,VLOOKUP(C1809,produits,7),"") ->  | G1809: =IF(C1809>1,VLOOKUP(C1809,produits,6),"") ->  | H1809: =IF(ISERROR(D1809*G1809),"",D1809*G1809) ->  | I1809: =IF(F1809="p",H1809*5%,IF(F1809="fp",H1809*5%,"")) ->  | J1809: =IF(F1809="fp",H1809*0.0975,"") ->  | K1809: =IF(C1809>1,SUM(H1809:J1809),"") ->  | L1809: =IF(C1809>1,VLOOKUP(C1809,produits,8),"") -> 
E1873: =IF(C1873>1,VLOOKUP(C1873,produits,2),"") ->  | F1873: =IF(C1873>1,VLOOKUP(C1873,produits,7),"") ->  | G1873: =IF(C1873>1,VLOOKUP(C1873,produits,6),"") ->  | H1873: =IF(ISERROR(D1873*G1873),"",D1873*G1873) ->  | I1873: =IF(F1873="p",H1873*5%,IF(F1873="fp",H1873*5%,"")) ->  | J1873: =IF(F1873="fp",H1873*0.0975,"") ->  | K1873: =IF(C1873>1,SUM(H1873:J1873),"") ->  | L1873: =IF(C1873>1,VLOOKUP(C1873,produits,8),"") -> 
E1937: =IF(C1937>1,VLOOKUP(C1937,produits,2),"") ->  | F1937: =IF(C1937>1,VLOOKUP(C1937,produits,7),"") ->  | G1937: =IF(C1937>1,VLOOKUP(C1937,produits,6),"") ->  | H1937: =IF(ISERROR(D1937*G1937),"",D1937*G1937) ->  | I1937: =IF(F1937="p",H1937*5%,IF(F1937="fp",H1937*5%,"")) ->  | J1937: =IF(F1937="fp",H1937*0.0975,"") ->  | K1937: =IF(C1937>1,SUM(H1937:J1937),"") ->  | L1937: =IF(C1937>1,VLOOKUP(C1937,produits,8),"") -> 
... 39 more rows

Sheet BDparts
A1: ID | B1: Date | C1: Item | D1: Quantite | E1: Description | F1: TX | G1: Prix Unitaire | H1: Colonne1
A2: 7 | B2: 2015-11-19 | C2: 1001 | D2: 1 | E2: Parts sociales | G2: 3.5
A3: 10 | B3: 2015-11-19 | C3: 1001 | D3: 1 | E3: Parts sociales | G3: 3.5
A4: 11 | B4: 2015-11-19 | C4: 1001 | D4: 1 | E4: Parts sociales | G4: 2
A5: 4 | B5: 2015-11-19 | C5: 1001 | D5: 1 | E5: Parts sociales
A6: 9 | B6: 2015-11-19 | C6: 1001 | D6: 1 | E6: Parts sociales

Sheet Liste produit
A1: No de produit | B1: Nom du produit | C1: Détails pour la permanence | D1: QTÉ MINIMUM | E1: PRIX | F1: Prix unitaire | G1: Tax | H1: Fournisseur | I1: Selection
A2: 1 | B2: Asperges (lb) | D2: 11 | E2: 20 | F2: =E2/D2 -> 1.818181818 | H2: 1
A3: 2 | B3: Aubergines (unité) NON DISPO FOURNISSEURS | D3: 18 | E3: 34 | F3: 1.888888889 | G3: fp | H3: 1
A4: 3 | B4: Betterave (2 lbs) - produit du Québec | D4: 12 | E4: 12 | F4: 1 | G4: p | H4: 1
A5: 4 | B5: Brocoli québec (unité) | D5: 18 | E5: 23 | F5: 1.277777778 | H5: 1
A6: 5 | B6: Carotte (2 lbs) - produit du Québec | D6: 24 | E6: 26.5 | F6: 1.104166667 | G6: p | H6: 1
A7: 6 | B7: Celeri (2 lbs) -NON DISPO PAS ASSEZ DE COMMANDES | D7: 24 | F7: 0 | G7: p | H7: 1
A8: 7 | B8: Concombre ontario (unité) | D8: 12 | E8: 12 | F8: 1 | G8: fp | H8: 1
A9: 8 | B9: Chou rouge Québec (unité) | D9: 10 | E9: 14.5 | F9: 1.45 | H9: 1
A10: 9 | B10: Blé d'Inde (3 unités) | C10: 5 X 12 unités | D10: 20 | E10: 15 | F10: 0.75 | H10: 1
A11: 10 | B11: Courge Butternut - produit du Québec (2 lb) | C11: (15 lb, mais différents tailles) | D11: 17 | E11: 22 | F11: 1.294117647 | H11: 1
A12: 11 | B12: Oignon rouge Québec (2 lb) | D12: 12 | E12: 15 | F12: 1.25 | H12: 1
A13: 12 | B13: Oignon jaunes (2 lb) québec | D13: 24 | E13: 14 | F13: 0.5833333333 | H13: 1
A14: 13 | B14: Patate blanche (10lb) - produit du Québec | D14: 1 | E14: 2 | F14: 2 | H14: 1
A15: 14 | B15: Radis cello (lb) | C15: 14x1 | D15: 14 | E15: 14 | F15: 1 | H15: 1
A16: 15 | B16: Artichaut (unité) NON DISPO PAS ASSEZ DE COMMANDES | D16: 30 | F16: 0 | H16: 1
A17: 16 | B17: Piment rouge ( lb ) | C17: (15 lb +- 30) | D17: 11 | E17: 20 | F17: 1.818181818 | H17: 1
A18: 17 | B18: Poireaux (unité) - produit du Québec | D18: 12 | E18: 12.5 | F18: 1.041666667 | H18: 1
A19: 18 | B19: Radis cello (lb) - produit du Québec | D19: 14 | E19: 13.5 | F19: 0.9642857143 | H19: 1
A20: 19 | B20: Zucchini vert (lb) NON DISPO PAS ASSEZ DE COMMANDES | C20: (40 lb, +- 4 zucchinis) | D20: 25 | F20: 0 | H20: 1
A21: 20 | B21: Navet ( 2 lb) produit du Québec | C21: 50 lb, +- 2 nav. | D21: 25 | E21: 19 | F21: 0.76 | H21: 1
A22: 21 | B22: Ciboulette sèche - 100gr | D22: 4 | E22: 9 | F22: 2.25 | H22: 1
A23: 22 | B23: Choux vert (unité) | C23: 24 unités | D23: 14 | E23: 15 | F23: 1.071428571 | H23: 1
A24: 23 | B24: Panais (1lb) produit du Québec | D24: 12 | E24: 21 | F24: 1.75 | H24: 1
A25: 24 | B25: Choux fleur (unité) produit du Québec | D25: 16 | E25: 26.5 | F25: 1.65625 | H25: 1
A26: 25 | B26: Fèves vertes ( lb ) - Québec | D26: 25 | E26: 36 | F26: 1.44 | H26: 1
A27: 26 | B27: Courge butternut- (unité) | D27: 1 | E27: 3 | F27: 3 | H27: 1
A28: 27 | B28: Ail tressé | C28: 50*250 | D28: 50 | E28: 25 | F28: 0.5 | H28: 1
A29: 28 | B29: Patate sucrée (2 lb) | C29: 40 | D29: 19 | E29: 19 | F29: 1 | H29: 1
A30: 29 | B30: Tomates (lb) | D30: 20 | E30: 20 | F30: 1 | H30: 1
A31: 30 | B31: Épinards bouquet (bunch) | D31: 24 | E31: 21 | F31: 0.875 | H31: 1
A32: 31 | B32: Jardin Collectif
A33: 32 | B33: Piment broyé biologique du Jardin Collectif - BIO - 35ml(quantité limitée) | H33: 7
A34: 33 | B34: Fines herbes - 100 gr | D34: 1 | E34: 2.35 | F34: =E34/D34 -> 2.35 | H34: 7
A35: 34 | B35: Menthe fraiche - un bouquet | D35: 1 | E35: 1 | F35: 1 | H35: 7
A36: 35 | B36: Sauge fraiche bio (30gr) | D36: 1 | E36: 1 | F36: 1 | H36: 7
A37: 36 | B37: Basilic frais bio ( 25gr) | D37: 1 | E37: 1 | F37: 1 | H37: 7
A38: 37 | B38: Ciboulette fraiche bio | D38: 1 | E38: 1 | F38: 1 | H38: 7
A39: 38 | B39: Menthe fraiche bouquet | D39: 1 | E39: 1 | F39: 1 | H39: 7
A40: 39 | B40: Estragon bio - bouquet | D40: 1 | E40: 1 | F40: 1 | H40: 7
A41: 40 | B41: Thym bio - bouquet | D41: 1 | E41: 1 | F41: 1 | H41: 7
A42: 41 | B42: Persil bio - bouquet | D42: 1 | E42: 1 | F42: 1 | H42: 7
A43: 42 | B43: Aubergine - jardin collectif du RCIP | D43: 1 | E43: 1.5 | F43: 1.5 | H43: 7
A44: 43 | B44: FRUITS
A45: 44 | B45: Tomates (lb) | D45: 20 | E45: 21 | F45: =E45/D45 -> 1.05
A46: 45 | B46: Mure 6oz - NON DISPO PAS ASSEZ DE COMMANDES | D46: 12 | F46: 0 | H46: 7
A47: 46 | B47: Rhubarbe | D47: 12 | E47: 29.5 | F47: 2.458333333 | H47: 7
A48: 47 | B48: Framboise - chopine | D48: 12 | E48: 20 | F48: 1.666666667 | H48: 7
A49: 48 | B49: Citron 4 unités | D49: 25 | E49: 31.5 | F49: 1.26 | H49: 7
A50: 49 | B50: Tomates raisin - chopine | D50: 12 | E50: 15 | F50: 1.25 | H50: 7
A51: 50 | B51: Bleuets ( chopine) | D51: 12 | E51: 21 | F51: 1.75
A52: 51 | B52: Ananas Dole 7 | D52: 7 | E52: 12 | F52: 1.714285714 | H52: 1
A53: 52 | B53: Avocat (3 unitéS) | C53: 70 UNITES | D53: 23 | E53: 38.5 | F53: 1.673913043 | H53: 1
A54: 53 | B54: Banane dole (3 unités ou 1 lb ) | C54: (40 lb, +- 100 bananas) | D54: 25 | E54: 22 | F54: 0.88 | H54: 1
A55: 54 | B55: Lime (5unités) | C55: 54 | D55: 35 | E55: 24 | F55: 0.6857142857 | H55: 1
A56: 55 | B56: Cantaloupes (unité) | C56: 15 | D56: 7 | E56: 16.5 | F56: 2.357142857 | H56: 1
A57: 56 | B57: Clementine (2 lb ) | C57: 30lb / 2,3 | D57: 10 | E57: 12 | F57: 1.2 | H57: 1
A58: 57 | B58: Pêche ontario (4 unités ou 1 lb ) | C58: 5 lbs-12 | D58: 25 | E58: 27.5 | F58: 1.1 | H58: 1
A59: 58 | B59: Orange Sunkist (4 unités) | C59: 48 | D59: 28 | E59: 28 | F59: 1
A60: 59 | B60: Poire Diamond (5 unités) NON DISPO FOURNISSEURS | C60: 60 | D60: 18 | F60: 0 | H60: 1
A61: 60 | B61: Pomme rouge du verger (2 lbs) - Québec | C61: 40 lbs par caisse | D61: 20 | E61: 22 | F61: 1.1 | H61: 1
A62: 61 | B62: Raisin rouge ( lb) | C62: 19 | D62: 18 | E62: 23 | F62: 1.277777778 | H62: 1
A63: 62 | B63: Orange sanguine (1 lb) | D63: 15 | E63: 12 | F63: 0.8 | H63: 1
A64: 63 | B64: Kiwi (lb) | C64: 9kg | D64: 20 | E64: 25.5 | F64: 1.275 | H64: 1
A65: 64 | B65: Mangue (unité) | C65: 10 | D65: 9 | E65: 10 | F65: 1.111111111 | H65: 1
A66: 65 | B66: Fraise - Québec | C66: 12x1 | D66: 12 | E66: 19.5 | F66: 1.625 | H66: 1
A67: 66 | B67: Pamplemousse (3 unités) | D67: 59 | E67: 23 | F67: 0.3898305085
A68: 67 | B68: Nectarine (4 unités) | C68: 56 | D68: 20 | E68: 25 | F68: 1.25
A69: 68 | B69: Melon miel | D69: 9 | E69: 13 | F69: 1.444444444
A70: 69 | B70: CAFÉ BROSSARD
A71: 70 | B71: MEXICAIN NOIR | D71: 1 | E71: 6.75 | F71: =SUM(E71/D71) -> 6.75 | H71: 3
A72: 71 | B72: MELANGE-MAISON CORSÉ EXPRESSO | D72: 1 | E72: 6.75 | F72: 6.75 | H72: 3
A73: 72 | B73: MELANGE-MAISON VELOUTE TURC | D73: 1 | E73: 6.75 | F73: 6.75 | H73: 3
A74: 73 | B74: MELANGE-MAISON VELOUTE FILTRE | D74: 1 | E74: 6.75 | F74: 6.75 | H74: 3
A75: 74 | B75: MELANGE-MAISON DOUX FILTRE | D75: 1 | E75: 6.75 | F75: 6.75 | H75: 3
A76: 75 | B76: MELANGE-MAISON CORSE MELITTA | D76: 1 | E76: 6.75 | F76: 6.75 | H76: 3
A77: 76 | B77: MELANGE-MAISON CORSE FILTRE | D77: 1 | E77: 6.75 | F77: 6.75 | H77: 3
A78: 77 | B78: ESPRESSO DOUBLE MOULU ESPRESSO | D78: 1 | F78: 0 | H78: 3
A79: 78 | B79: DECAFEINE COLOMBIE BRUN FILTRE | D79: 1 | E79: 7.35 | F79: 7.35 | H79: 3
A80: 79 | B80: COLOMBIE NOIR EXPRESSO | D80: 1 | E80: 6.75 | F80: 6.75 | H80: 3
A81: 80 | B81: COLOMBIE NOIR FILTRE | D81: 1 | E81: 6.75 | F81: 6.75 | H81: 3
A82: 81 | B82: COLOMBIE BRUN MELITTA | D82: 1 | E82: 6.75 | F82: 6.75 | H82: 3
A83: 82 | B83: COLOMBIE BRUN FILTRE | D83: 1 | E83: 6.75 | F83: 6.75 | H83: 3
A84: 83 | B84: COLOMBIE 1/2B-1/2N filtre | D84: 1 | E84: 6.75 | F84: 6.75 | H84: 3
A85: 84 | B85: ESPRESSO BAR GRAINS | D85: 1 | E85: 6.75 | F85: 6.75 | H85: 3
A86: 85 | B86: EQUITABLE X 1 LB MEXICAIN 1/2B-1/2N FILTRE | D86: 1 | E86: 9.25 | F86: 9.25 | H86: 3
A87: 86 | B87: EQUITABLE X 1 LB COLOMBIE | D87: 1 | E87: 9.25 | F87: 9.25 | H87: 3
A88: 87 | B88: EQUIT. X 1 LB ESPRESSO BAR ESPRESSO | D88: 1 | E88: 9.25 | F88: 9.25 | H88: 3
A89: 88 | B89: EQUIT. X 1 MELANGE MAISON VELOUTÉ | D89: 1 | E89: 9.25 | F89: 9.25 | H89: 3
A90: 89 | B90: EQUIT. X 1 MELANGE MAISON CORSÉ | D90: 1 | E90: 9.25 | F90: 9.25 | H90: 3
A91: 90 | B91: MEXICAIN DEMI BRUN EXPRESSO | D91: 1 | E91: 6.75 | F91: 6.75 | H91: 3
A92: 91 | B92: THÉ EN VRAC (SAC 1 LB) | D92: 1 | E92: 8.75 | F92: 8.75 | H92: 3
A93: 92 | B93: THÉ BROSSARD ORANGE PEKOE 500 SACHETS X 1 TASSE | D93: 1 | E93: 8 | F93: 8 | H93: 3
A94: 93 | B94: THÉ BROSSARD ORANGE PEKOE 250 SACHETS X 2 TASSES | D94: 1 | E94: 7 | F94: 7 | H94: 3
A95: 94 | B95: THÉ FOUR O'CLOCK 20 SACHETS | D95: 1 | E95: 3.5 | F95: 3.5 | H95: 3
A96: 95 | B96: THÉ FOUR O'CLOCK 6 X 20 SACHETS | D96: 1 | E96: 16 | F96: 16 | H96: 3
A97: 96 | B97: THÉ TWINING 20 SACHETS | D97: 1 | E97: 4.5 | F97: 4.5 | H97: 3
A98: 97 | B98: THÉ TWINING 6 X 20 SACHETS | D98: 1 | E98: 23 | F98: 23 | H98: 3
A99: 98 | B99: TISANE LA COURTISANE 20 SACHETS 10 SAVEURS VARIES | D99: 1 | E99: 3.5 | F99: 3.5 | H99: 3
A100: 99 | B100: TISANE LA COURTISANE 6 X 20 SACHETS | D100: 1 | E100: 16 | F100: 16 | H100: 3
A101: 100 | B101: COFFRET LA COURTISANE 64 SACHETS 8 SAVEURS VARIES | D101: 1 | E101: 15 | F101: 15 | H101: 3
A102: 101 | B102: COFFRET LA COURTISANE 4 X 64 SACHETS 8 SAVEURS VARIES | D102: 1 | E102: 48 | F102: 48 | H102: 3
A103: 102 | B103: TISANE LA COURTISANE 6 X20 10 SAVEURS VARIES | D103: 1 | E103: 20.5 | F103: =SUM(E103/D103) -> 20.5 | H103: 3
A104: 103 | B104: BATONNETS PLASTIQUES 1000/BOITES | D104: 1 | E104: 3 | F104: 3 | H104: 3
A105: 104 | B105: COLORANT A CAFE DEAN SAC 500 GR | D105: 1 | E105: 2.6 | F105: 2.6 | H105: 3
A106: 105 | B106: FILTRES MELITTA 2-4-6 40/PQT | D106: 1 | E106: 2 | F106: 2 | H106: 3
A107: 106 | B107: FILTRES PANIER 100 PQT | D107: 1 | E107: 1.15 | F107: 1.15 | H107: 3
A108: 107 | B108: FILTRES PANIER 1000/CSE | D108: 1 | E108: 9.9 | F108: 9.9 | H108: 3
A109: 108 | B109: DECAFEINE EXPRESSO | D109: 1 | E109: 6.75 | F109: 6.75 | H109: 3
A110: 109 | B110: THÉ CITRON 20 SACHETS FOUR O'CLOCK | D110: 1 | E110: 3.5 | F110: 3.5 | H110: 3
A111: 110 | B111: THÉ CITRON 6 X20 SACHETS FOUR O'CLOCK | D111: 1 | E111: 16 | F111: 16 | H111: 3
A112: 111 | B112: THÉ EARL GREY 20 SACHETS FOUR O'CLOCK | D112: 1 | E112: 3.5 | F112: 3.5 | H112: 3
A113: 112 | B113: THÉ EARL GREY 6X 20 SACHETS FOUR O'CLOCK | D113: 1 | E113: 16 | F113: 16 | H113: 3
A114: 113 | B114: THÉ ENGLISH BREAKFAST 20 SACHETS FOUR O'CLOCK | D114: 1 | E114: 3.5 | F114: 3.5 | H114: 3
A115: 114 | B115: THÉ ENGLISH BREAKFAST 6 X 20 SACHETS FOUR O'CLOCK | D115: 1 | E115: 16 | F115: 16 | H115: 3
A116: 115 | B116: THÉ VERT 20 SACHETS FOUR O'CLOCK | D116: 1 | E116: 3.5 | F116: 3.5 | H116: 3
A117: 116 | B117: THÉ VERT6 X 20 SACHETS FOUR O'CLOCK | D117: 1 | E117: 16 | F117: 16 | H117: 3
A118: 117 | B118: Thé coffret 4 saveurs 6x20 | D118: 1 | E118: 16 | F118: 16 | H118: 3
A119: 118 | B119: THÉ *TWINNING* | D119: 1 | E119: 4.5 | F119: 4.5 | H119: 3
A120: 119 | B120: THÉ *TWINNING* DARJEELING 20 SACHETS | D120: 1 | E120: 4.5 | F120: 4.5 | H120: 3
A121: 120 | B121: THÉ *TWINNING* JASMIN 20 SACHETS | D121: 1 | E121: 4.5 | F121: 4.5 | H121: 3
A122: 121 | B122: THÉ *TWINNING* GOUT ANGLAIS 20 SACHETS | D122: 1 | E122: 4.5 | F122: 4.5 | H122: 3
A123: 122 | B123: THÉ *TWINNING* 5 VARIÉTÉS 20 SACHETS | D123: 1 | E123: 4.5 | F123: 4.5 | H123: 3
A124: 123 | B124: THÉ *TWINNING* CEYLAN 20 SACHETS | D124: 1 | E124: 4.5 | F124: 4.5 | H124: 3
A125: 124 | B125: THÉ *TWINNING* LADY GREY 20 SACHETS | D125: 1 | E125: 4.5 | F125: 4.5 | H125: 3
A126: 125 | H126: 3
A127: 126 | B127: THÉ *TWINNING* DARJEELING 6X 20 SACHETS | D127: 1 | E127: 23.5 | F127: =SUM(E127/D127) -> 23.5 | H127: 3
A128: 127 | B128: THÉ *TWINNING* JASMIN 6X20 SACHETS | D128: 1 | E128: 23.5 | F128: 23.5 | H128: 3
A129: 128 | B129: THÉ *TWINNING* GOUT ANGLAIS 6X20 SACHETS | D129: 1 | E129: 23.5 | F129: 23.5 | H129: 3
A130: 129 | B130: THÉ *TWINNING* 5 VARIÉTÉS 6X20 SACHETS | D130: 1 | E130: 23.5 | F130: 23.5 | H130: 3
A131: 130 | B131: THÉ *TWINNING* CEYLAN 6X20 SACHETS | D131: 1 | E131: 23.5 | F131: 23.5 | H131: 3
A132: 131 | B132: THÉ *TWINNING* LADY GREY 6X20 SACHETS | D132: 1 | E132: 23.5 | F132: 23.5 | H132: 3
A133: 132 | H133: 3
A134: 133 | B134: CAFÉ RÉGULIER BOITE 80X2 OZ | D134: 1 | E134: 69 | F134: =SUM(E134/D134) -> 69 | H134: 3
A135: 134 | B135: CAFÉ ÉQUITABLE BOITE80X2 OZ | D135: 1 | E135: 88 | F135: =SUM(E135/D135) -> 88 | H135: 3
A136: 135 | H136: 3
A137: 136 | B137: THÉ ET TISANES BIO ÉQUITABLES 6X16 SACHETS | D137: 1 | E137: 20.5 | F137: =SUM(E137/D137) -> 20.5 | H137: 3
A138: 137 | H138: 3
A139: 138 | B139: TISANE LA COURTISANE CAMOMILLE | D139: 1 | E139: 3.5 | F139: =SUM(E139/D139) -> 3.5 | H139: 3
A140: 139 | B140: TISANE LA COURTISANE DOUCEUR NOCTURNE | D140: 1 | E140: 3.5 | F140: 3.5 | H140: 3
A141: 140 | B141: TISANE LA COURTISANE MANGUE | D141: 1 | E141: 3.5 | F141: 3.5 | H141: 3
A142: 141 | B142: TISANE LA COURTISANE CITRON | D142: 1 | E142: 3.5 | F142: 3.5 | H142: 3
A143: 142 | B143: TISANE LA COURTISANE POIRE GINGEMBRE | D143: 1 | E143: 3.5 | F143: 3.5 | H143: 3
A144: 143 | B144: TISANE LA COURTISANE CANNEBERGE | D144: 1 | E144: 3.5 | F144: 3.5 | H144: 3
A145: 144 | B145: TISANE LA COURTISANE CAPRICE D'ORANGE | D145: 1 | E145: 3.5 | F145: 3.5 | H145: 3
A146: 145 | B146: TISANE LA COURTISANE FRUIT DE PASSION | D146: 1 | E146: 3.5 | F146: 3.5 | H146: 3
A147: 146 | B147: TISANE LA COURTISANE MURES SAUVAGE | D147: 1 | E147: 3.5 | F147: 3.5 | H147: 3
A148: 147 | B148: TISANE LA COURTISANE MENTHE GIVRÉE | D148: 1 | E148: 3.5 | F148: 3.5 | H148: 3
A149: 148 | B149: TISANE LA COURTISANE TILLEUL | D149: 1 | E149: 3.5 | F149: 3.5 | H149: 3
A150: 149 | B150: TISANE LA COURTISANE VERVEINE | D150: 1 | E150: 3.5 | F150: 3.5 | H150: 3
A151: 150 | H151: 3
A152: 151 | B152: CAFE REG. MÉLANGE MAISON CORSÉ ESPRESSO | D152: 1 | E152: 6.75 | F152: =SUM(E152/D152) -> 6.75 | H152: 3
A153: 152 | B153: CAFE REG. MEXICAIN EXPRESSO | D153: 1 | E153: 6.75 | F153: =SUM(E153/D153) -> 6.75 | H153: 3
A154: 153 | H154: 3
A155: 154 | H155: 3
A156: 155 | H156: 3
A157: 156
A158: 157
A159: 158
A160: 159
A161: 160
A162: 161
A163: 162
A164: 163
A165: 164
A166: 165
A167: 166
A168: 167 | B168: MAYRAND
A169: 168 | B169: BISCUITS ET COLLATIONS
A170: 169
A171: 170 | B171: Biscuit avoine - marque collation (250g) | C171: 16585 | D171: 12 | E171: 12.99 | F171: =SUM(E171/D171) -> 1.0825 | H171: 2
A172: 171 | B172: Biscuit Maria Gullon (800g) | C172: 42205 | D172: 6 | E172: 12.13 | F172: 2.021666667 | H172: 2
A173: 172 | B173: Craquelin salé-Premiums Plus (900gr) | C173: 1770 | D173: 12 | E173: 66.82 | F173: 5.568333333 | H173: 2
A174: 173 | B174: Barre granola avoine et miel - Val Nature(230g) (tx inclues) | C174: 14624 | D174: 12 | E174: 27.24 | F174: 2.27 | H174: 2
A175: 174 | B175: Jell-o Gelée poudre framboise - 85g | C175: 6713 | D175: 24 | E175: 16.34 | F175: 0.6808333333 | H175: 2
A176: 175 | B176: Gruau 1 minute -Quaker (900gr) | C176: 4690 | D176: 12 | E176: 37.81 | F176: 3.150833333 | H176: 2
A177: 176 | B177: Miel Si Bon Trèfle (500ml) | C177: 49059 | D177: 12 | E177: 44.5 | F177: 3.708333333 | H177: 2
A178: 177 | B178: Barre granola amande grillée - Val Nature (230 gr)(tx inclues) | C178: 14622 | D178: 12 | E178: 33.16 | F178: 2.763333333 | H178: 2
A179: 178 | B179: Biscuit chocolat -Gullon Maria (750 gr) | C179: 6600 | D179: 6 | E179: 14.84 | F179: 2.473333333 | H179: 2
A180: 179 | B180: confiture figues-Vitrac (320 g) | C180: 17961 | D180: 12 | F180: 0 | H180: 2
A181: 180 | B181: confiture abricot-Vitrac (320 gr) | C181: 17962 | D181: 12 | E181: 13.85 | F181: 1.154166667 | H181: 2
A182: 181 | B182: Tartinade érable (400 g) | C182: 7570 | D182: 24 | E182: 22.99 | F182: 0.9579166667 | H182: 2
A183: 182 | B183: Beurre d'arachide croquant - Kraft (500 gr) | C183: 826 | D183: 24 | E183: 45.53 | F183: 1.897083333 | H183: 2
A184: 183 | B184: Beurre d'arachide crémeux- Kraft (2 kg) | C184: 823 | D184: 6 | E184: 49.99 | F184: 8.331666667 | H184: 2
A185: 184 | B185: confiture fraise- Vespucci (500 ml) | C185: 32129 | D185: 12 | E185: 23.22 | F185: 1.935 | H185: 2
A186: 185 | B186: Marmelade 3 fruit-Vespucci (500 ml) | C186: 32125 | D186: 12 | E186: 23.22 | F186: 1.935 | H186: 2
A187: 186 | B187: Céréales Quaker croque nature (560 gr) | C187: 30906 | D187: 14 | E187: 54.65 | F187: 3.903571429 | H187: 2
A188: 187 | B188: Confiture de figues Baraka (430 gr) | C188: 21330 | D188: 12 | E188: 21.77 | F188: 1.814166667 | H188: 2
A189: 188 | B189: Gruau rapide - Agrofusion (800gr) | C189: 16721 | D189: 12 | E189: 21.28 | F189: 1.773333333 | H189: 2
A190: 189 | B190: Biscuit chocolat lait -Célébration (300g) | C190: 10809 | D190: 8 | E190: 26.63 | F190: 3.32875 | H190: 2
A191: 190 | B191: confiture framboise- Vespucci (500 ml) | C191: 32128 | D191: 12 | E191: 23.22 | F191: 1.935 | H191: 2
A192: 191 | B192: Biscuit savoiardi-Emma (400 gr) | C192: 10216 | D192: 12 | E192: 22.76 | F192: 1.896666667 | H192: 2
A193: 192 | B193: Biscuit choco diablo type cookie Leclerc (350g) | C193: 16117 | D193: 12 | E193: 23.99 | F193: 1.999166667 | H193: 2
A194: 193 | B194: Biscuits mélasse Patte d'ours (300g) | C194: 16570 | D194: 6 | E194: 36.62 | F194: 6.103333333 | H194: 2
A195: 194 | B195: Biscuit brownie-Patte d'ours (300g) | C195: 2228 | D195: 12 | E195: 44.34 | F195: 3.695 | H195: 2
A196: 195 | B196: Biscuit brisure chocolat -Collation (250g) | C196: 16586 | D196: 12 | E196: 15.43 | F196: 1.285833333 | H196: 2
A197: 196 | B197: Tartinade choco-noisette - (400g) | C197: 5988 | D197: 12 | E197: 27.71 | F197: 2.309166667 | H197: 2
A198: 197 | B198: Biscuit collation Noix de coco (250 gr) | C198: 21142 | D198: 12 | E198: 15.5 | F198: 1.291666667 | H198: 2
A199: 198 | B199: HUILES
A200: 199 | B200: Huile de Tournesol La Perla (946 ml) (17,79/d.-c.) | C200: 47682 | D200: 12 | E200: 34.39 | F200: =SUM(E200/D200) -> 2.865833333
... 557 more rows

Sheet liste fournisseurs
A1: No. | B1: Nom | C1: Adresse | D1: Ville | E1: Province | F1: Code Postal | G1: Téléphone | H1: Cellulaire | I1: Courriel | J1: Contact
A2: 1 | B2: Gaétan Bono - Marché Central | D2: Montréal | E2: Québec | G2: 514-381-8679 | J2: Frank
A3: 2 | B3: Mayrand | D3: Montreal-Nord | E3: Québec | G3: 514-2559330 | J3: Joanne
A4: 3 | B4: Café Brossard | D4: Montréal | E4: Québec | G4: 514-321-4121
A5: 4 | B5: Ecole d'hotellerie | C5: 4500, bou. Henri Bourassa | D5: Montreal-Nord | E5: Québec | G5: 514-955-4555 | J5: Hélène Bourgault
A6: 5 | B6: Magasin Surplus L'Accorderie
A7: 6 | B7: boucherie charleroix
A8: 7 | B8: Épisol | D8: Montreal-Nord | E8: Québec | J8: Margareth Pierre
A9: 8
A10: 9
A11: 10
A12: 11
A13: 12
A14: 13
A15: 14
A16: 15
A17: 16
A18: 17
A19: 18
A20: 19
A21: 20

Sheet Liste membre
A1: L'Accorderie de Montréal-Nord
A2: Liste des AccordeurEs
A4: ID | B4: Nom | C4: Adresse | D4: Ville | E4: Province | F4: Code Postal | G4: Téléphone | H4: Cellulaire | I4: Courriel | K4: # PdC
A5: 1 | K5: 1
A6: 2 | K6: 2
A7: 3 | K7: 3
A8: 4 | K8: 4
A9: 5 | K9: 2
A10: 6 | K10: 1
A11: 7 | K11: 2
A12: 8 | K12: 3
A13: 9 | K13: 4
A14: 10 | K14: 2
A15: 11 | K15: 1
A16: 12 | K16: 2
A17: 13
A18: 14
A19: 15
A20: 16
A21: 17
A22: 18
A23: 19
A24: 20
A25: 21
A26: 22
A27: 23
A28: 24
A29: 25
A30: 26
A31: 27
A32: 28
A33: 29
A34: 30
A35: 31
A36: 32
A37: 33
A38: 34
A39: 35
A40: 36
A41: 37
A42: 38
A43: 39
A44: 40
A45: 41
A46: 42
A47: 43
A48: 44
A49: 45
A50: 46
A51: 47
A52: 48
A53: 49
A54: 50
A55: 51
A56: 52
A57: 53
A58: 54
A59: 55
A60: 56
A61: 57
A62: 58
A63: 59
A64: 60
A65: 61
A66: 62
A67: 63
A68: 64
A69: 65
A70: 66
A71: 67
A72: 68
A73: 69
A74: 70
A75: 71
A76: 72
A77: 73
A78: 74
A79: 75
A80: 76
A81: 77
A82: 78
A83: 79
A84: 80
A85: 81
A86: 82
A87: 83
A88: 84
A89: 85
A90: 86
A91: 87
A92: 88
A93: 89
A94: 90
A95: 91
A96: 92
A97: 93
A98: 94
A99: 95
A100: 96
A101: 97
A102: 98
A103: 99
A104: 100
A105: 101
A106: 102
A107: 103
A108: 104
A109: 105
A110: 106
A111: 107
A112: 108
A113: 109
A114: 110
A115: 111
A116: 112
A117: 113
A118: 114
A119: 115
A120: 116
A121: 117
A122: 118
A123: 119
A124: 120
A125: 121
A126: 122
A127: 123
A128: 124
A129: 125
A130: 126
A131: 127
A132: 128
A133: 129
A134: 130
A135: 131
A136: 132
A137: 133
A138: 134
A139: 135
A140: 136
A141: 137
A142: 138
A143: 139
A144: 140
A145: 141
A146: 142
A147: 143
A148: 144
A149: 145
A150: 146
A151: 147
A152: 148
A153: 149
A154: 150
A155: 151
A156: 152
A157: 153
A158: 154
A159: 155
A160: 156
A161: 157
A162: 158
A163: 159
A164: 160
A165: 161
A166: 162
A167: 163
A168: 164
A169: 165
A170: 166
A171: 167
A172: 168
A173: 169
A174: 170
A175: 171
A176: 172
A177: 173
A178: 174
A179: 175
A180: 176
A181: 177
A182: 178
A183: 179
A184: 180
A185: 181
A186: 182
A187: 183
A188: 184
A189: 185
A190: 186
A191: 187
A192: 188
A193: 189
A194: 190
A195: 191
A196: 192
A197: 193
A198: 194
A201: 200
A202: 201
A203: 202
... 238 more rows

Sheet Liste PdC
A2: ID | B2: Organismes | C2: Numéro rue | D2: Nom rue | E2: Ville | F2: Province | G2: Zip
A3: 1 | B3: PE | C3: 11460 | D3: Avenue Pelletier | E3: Montréal-Nord | F3: Qc | G3: H1H 3S4
A4: 2 | B4: Accorderie | C4: 12000 | D4: Rue Lapierre | E4: Montréal-Nord | F4: Qc | G4: H1H 3G6
A5: 3 | B5: Entre Parents | C5: 4825 | D5: Boulevard Gouin | E5: Montréal-Nord | F5: Qc | G5: H1H 9O7
A6: 4 | B6: Coop | C6: 6666 | D6: Boul. Pie IX | E6: Montréal-Nord | F6: Qc | G6: H1H 6R4
